{"text_format":"1","workbook":"xlsx","n_sheets":4,"sheets":["Chart","MainData","APIData","Formatting"],"not_rendered":{"charts":1,"images":5,"macros":1,"external_links":0,"defined_names":96,"comments":0,"pivot_tables":0},"unopened":[],"bounds":{"document_bytes":16777216,"sheet_cells":100000,"rows_first":2000,"rows_last":500,"rows_between":2000,"halvings":0,"cell_chars":16384,"cell_head_chars":4096},"cells_cut":0,"cells_raw":0,"read":"whole","date_system":"1900"}

{"sheet":"Chart","index":0,"n_rows":15,"n_cols":12,"rows_kept":15,"cut":false,"hidden":false,"merged":[[4,6,5,7],[4,3,4,4]]}
[null,null,{"$f":"CONCATENATE(\"Template Version =\",\" \",ASPXVer)","v":"Template Version = APIBufferReport2b"},"Template saved on",{"$f":"TemplateSaveDate","v":"2023-05-17T14:04:29"}]
[]
[null,null,null,null,null,null,null,null,null,"* Click once to connect the buffer chart to your Playbook site."]
[null,null,"Configuration Settings:",null,null,null,"Select Milestones/Tasks to Track:",null,null,"Trajectory Periods:"]
[null,null,"Buffer Report:","XP 2000 - Prototype 1 ready for testing",null,null,{"$f":"CONCATENATE(\"Only milestones that have appeared on or after \",TEXT(Formatting!Q2,DateFormatText),\" are listed.\")","v":"Only milestones that have appeared on or after 7/11/2023 are listed."},null,null,{"$f":"CONCATENATE(\"Min (\",TEXT(WORKDAY(DateRun,-K5),DateFormatText),\")\")","v":"Min (5/10/2023)"},5,"days"]
[null,null,"Report Type:",null,null,null,null,null,null,{"$f":"CONCATENATE(\"Max (\",TEXT(WORKDAY(DateRun,-K6),DateFormatText),\")\")","v":"Max (5/3/2023)"},10,"days"]
[null,null,null,null,null,null,null,null,null,"Specific Date","2017-08-08"]
[null,null,"Located…"]
[]
[]
[null,null,"Chart Settings:",null,null,null,"Select Options to Show:",null,null,"Calculated Status Dates (today)"]
[null,null,"Plot Buffer Use Every:",1,"weekdays",null,null,null,null,"OK → Warning",{"$f":"WORKDAY(BufferStartDate,Formatting!I4+(TODAY()-ProjectStartDate)*(Formatting!I5-Formatting!I4)/(BufferEndDate-ProjectStartDate))","v":"2023-07-13"}]
[null,null,"Number of Days to Show Above Buffer:",0,{"$f":"\"weekdays\n(\"&MaxDaysAboveBuffer &\" to show all)\"","v":"weekdays\n(-14 to show all)"},null,null,null,null,"Warning → Danger",{"$f":"WORKDAY(BufferStartDate,Formatting!J4+(TODAY()-ProjectStartDate)*(Formatting!J5-Formatting!J4)/(BufferEndDate-ProjectStartDate))","v":"2023-07-17"}]
[null,null,"Number of Days to Show Below Zero:",0,{"$f":"\"weekdays\n(\"&-MinDaysBelowZero &\" to show all)\"","v":"weekdays\n(0 to show all)"}]
[null,null,"Date Format:",{"$f":"TODAY()","v":"2023-05-17"}]

{"sheet":"MainData","index":1,"n_rows":57,"n_cols":42,"rows_kept":57,"cut":false,"hidden":true,"merged":[]}
["Reporting Date","Days From Start","Ahead","On Track","Some Risk","High Risk","Behind","Milestone Dates","Impact Reasons","Impact","TBD2","GridlineY","_Finish Line","Prototype 1 ready for testing","Column15","Column16","Column17","Column18","Column19","Column20","Column21","Column22","Column23","Column24","Column25","Column26","Column27","Column28","Column29","Column30","Column31","Column32","Column33","Column34","Column35","Column36","Column37","Column38","Column39","Column40","Column41","Column42"]
["2023-05-17",0,0,2,2,10,2,"11-Jul-23\n",null,null,null,null,null,0]
["2023-05-18",1,null,null,null,null,null,""]
["2023-05-19",2,null,null,null,null,null,""]
["2023-05-22",3,null,null,null,null,null,""]
["2023-05-23",4,null,null,null,null,null,""]
["2023-05-24",5,null,null,null,null,null,""]
["2023-05-25",6,null,null,null,null,null,""]
["2023-05-26",7,null,null,null,null,null,""]
["2023-05-29",8,null,null,null,null,null,""]
["2023-05-30",9,null,null,null,null,null,""]
["2023-05-31",10,null,null,null,null,null,""]
["2023-06-01",11,null,null,null,null,null,""]
["2023-06-02",12,null,null,null,null,null,""]
["2023-06-05",13,null,null,null,null,null,""]
["2023-06-06",14,null,null,null,null,null,""]
["2023-06-07",15,null,null,null,null,null,""]
["2023-06-08",16,null,null,null,null,null,""]
["2023-06-09",17,null,null,null,null,null,""]
["2023-06-12",18,null,null,null,null,null,""]
["2023-06-13",19,null,null,null,null,null,""]
["2023-06-14",20,null,null,null,null,null,""]
["2023-06-15",21,null,null,null,null,null,""]
["2023-06-16",22,null,null,null,null,null,""]
["2023-06-19",23,null,null,null,null,null,""]
["2023-06-20",24,null,null,null,null,null,""]
["2023-06-21",25,null,null,null,null,null,""]
["2023-06-22",26,null,null,null,null,null,""]
["2023-06-23",27,null,null,null,null,null,""]
["2023-06-26",28,null,null,null,null,null,""]
["2023-06-27",29,null,null,null,null,null,""]
["2023-06-28",30,null,null,null,null,null,""]
["2023-06-29",31,null,null,null,null,null,""]
["2023-06-30",32,null,null,null,null,null,""]
["2023-07-03",33,null,null,null,null,null,""]
["2023-07-04",34,null,null,null,null,null,""]
["2023-07-05",35,null,null,null,null,null,""]
["2023-07-06",36,null,null,null,null,null,""]
["2023-07-07",37,null,null,null,null,null,""]
["2023-07-10",38,null,null,null,null,null,""]
["2023-07-11",39,null,null,null,null,null,"",null,null,null,0,0]
["2023-07-12",40,null,null,null,null,null,"",null,null,null,1]
["2023-07-13",41,null,null,null,null,null,"",null,null,null,2]
["2023-07-14",42,null,null,null,null,null,"",null,null,null,3]
["2023-07-17",43,null,null,null,null,null,"",null,null,null,4]
["2023-07-18",44,null,null,null,null,null,"",null,null,null,5]
["2023-07-19",45,null,null,null,null,null,"",null,null,null,6]
["2023-07-20",46,null,null,null,null,null,"",null,null,null,7]
["2023-07-21",47,null,null,null,null,null,"",null,null,null,8]
["2023-07-24",48,null,null,null,null,null,"",null,null,null,9]
["2023-07-25",49,null,null,null,null,null,"",null,null,null,10]
["2023-07-26",50,null,null,null,null,null,"",null,null,null,11]
["2023-07-27",51,null,null,null,null,null,"",null,null,null,12]
["2023-07-28",52,null,null,null,null,null,"",null,null,null,13]
["2023-07-31",53,0,10,2,2,2,"",null,null,null,14]
["2023-08-01",54,null,null,null,null,null,null,null,null,null,15]
["2023-08-02",55,0,10,2,2,2,null,null,null,null,16,16]

{"sheet":"APIData","index":2,"n_rows":60,"n_cols":43,"rows_kept":60,"cut":false,"hidden":true,"merged":[]}
["A","B","C","D","E","F","G","H","I","J","K","L","M","N","O","P","Q","R","S","T","U","V","W","X","Y","Z","AA","AB","AC","AD","AE","AF","AG","AH","AI","AJ","AK","AL","AM","AN","AO","AP","AQ"]
[1,"Report Name","Message","Time Run","Finish","Tracking Start Date","Buffer Start Date","Buffer End Date","Buffer Duration","Green on Day0","Red on Last Day","Warning Size","Number of Tracks","Latest Milestone","Latest Milestone Date","Buffer Used","NumOfErrors","WarningScore","Tasks with Warnings"]
[2,"XP 2000 - Prototype 1 ready for testing",null,"2023-05-17 16:44:15","","2023-05-17","2023-07-12","2023-07-31","14","2","2","2","1","Prototype 1 ready for testing","2023-07-11",null,"0","3","Bring-up/Smoke test 1st proto (Critical / Unassigned)\rAcquire parts, kit, send to supplier: Pwr Board (Near Critical / Planned Out of Date -1 d)"]
[3,"Reporting Date","Days From Start","Ahead","On Track","Some Risk","High Risk","Behind","Milestone Dates","Impact Reasons","Impact","TBD2","GridlineY","_Finish Line","Prototype 1 ready for testing"]
[4,"2023-05-17","0","0","2","2","10","2","11-Jul-23\n",null,null,null,null,null,"0"]
[5,"2023-05-18","1",null,null,null,null,null,""]
[6,"2023-05-19","2",null,null,null,null,null,""]
[7,"2023-05-22","3",null,null,null,null,null,""]
[8,"2023-05-23","4",null,null,null,null,null,""]
[9,"2023-05-24","5",null,null,null,null,null,""]
[10,"2023-05-25","6",null,null,null,null,null,""]
[11,"2023-05-26","7",null,null,null,null,null,""]
[12,"2023-05-29","8",null,null,null,null,null,""]
[13,"2023-05-30","9",null,null,null,null,null,""]
[14,"2023-05-31","10",null,null,null,null,null,""]
[15,"2023-06-01","11",null,null,null,null,null,""]
[16,"2023-06-02","12",null,null,null,null,null,""]
[17,"2023-06-05","13",null,null,null,null,null,""]
[18,"2023-06-06","14",null,null,null,null,null,""]
[19,"2023-06-07","15",null,null,null,null,null,""]
[20,"2023-06-08","16",null,null,null,null,null,""]
[21,"2023-06-09","17",null,null,null,null,null,""]
[22,"2023-06-12","18",null,null,null,null,null,""]
[23,"2023-06-13","19",null,null,null,null,null,""]
[24,"2023-06-14","20",null,null,null,null,null,""]
[25,"2023-06-15","21",null,null,null,null,null,""]
[26,"2023-06-16","22",null,null,null,null,null,""]
[27,"2023-06-19","23",null,null,null,null,null,""]
[28,"2023-06-20","24",null,null,null,null,null,""]
[29,"2023-06-21","25",null,null,null,null,null,""]
[30,"2023-06-22","26",null,null,null,null,null,""]
[31,"2023-06-23","27",null,null,null,null,null,""]
[32,"2023-06-26","28",null,null,null,null,null,""]
[33,"2023-06-27","29",null,null,null,null,null,""]
[34,"2023-06-28","30",null,null,null,null,null,""]
[35,"2023-06-29","31",null,null,null,null,null,""]
[36,"2023-06-30","32",null,null,null,null,null,""]
[37,"2023-07-03","33",null,null,null,null,null,""]
[38,"2023-07-04","34",null,null,null,null,null,""]
[39,"2023-07-05","35",null,null,null,null,null,""]
[40,"2023-07-06","36",null,null,null,null,null,""]
[41,"2023-07-07","37",null,null,null,null,null,""]
[42,"2023-07-10","38",null,null,null,null,null,""]
[43,"2023-07-11","39",null,null,null,null,null,"",null,null,null,"0","0"]
[44,"2023-07-12","40",null,null,null,null,null,"",null,null,null,"1"]
[45,"2023-07-13","41",null,null,null,null,null,"",null,null,null,"2"]
[46,"2023-07-14","42",null,null,null,null,null,"",null,null,null,"3"]
[47,"2023-07-17","43",null,null,null,null,null,"",null,null,null,"4"]
[48,"2023-07-18","44",null,null,null,null,null,"",null,null,null,"5"]
[49,"2023-07-19","45",null,null,null,null,null,"",null,null,null,"6"]
[50,"2023-07-20","46",null,null,null,null,null,"",null,null,null,"7"]
[51,"2023-07-21","47",null,null,null,null,null,"",null,null,null,"8"]
[52,"2023-07-24","48",null,null,null,null,null,"",null,null,null,"9"]
[53,"2023-07-25","49",null,null,null,null,null,"",null,null,null,"10"]
[54,"2023-07-26","50",null,null,null,null,null,"",null,null,null,"11"]
[55,"2023-07-27","51",null,null,null,null,null,"",null,null,null,"12"]
[56,"2023-07-28","52",null,null,null,null,null,"",null,null,null,"13"]
[57,"2023-07-31","53","0","10","2","2","2","",null,null,null,"14"]
[59,"2023-08-01","54",null,null,null,null,null,null,null,null,null,"15"]
[60,"2023-08-02","55","0","10","2","2","2",null,null,null,null,"16","16"]

{"sheet":"Formatting","index":3,"n_rows":568,"n_cols":51,"rows_kept":568,"cut":false,"hidden":true,"merged":[[1,1,1,3]]}
["2023-05-17T14:04:29",null,null,null,null,"Shaded Areas",null,null,null,null,null,null,null,"Gridlines & date labels",null,null,null,null,{"$f":"_xlfn.SINGLE(BufferDays)","v":"14"},null,null,null,null,"AvailableTracks","SelectedTracks","updateSelected",null,"DateRunFrom0",{"$f":"NETWORKDAYS(ProjectStartDate, DateRun)","v":1},"firstpoint",{"$f":"INDEX(MainData!$N$58:$N$842,MATCH(TRUE,MainData!$N$58:$N$842<>\"\",0))","v":{"$error":"#N/A"}},"firstdate",{"$f":"INDEX(MainData!$A$5:$A$842,MATCH(TRUE,MainData!$C$5:$C$842<>\"\",0))","v":"2023-07-31"},"Todaypoint",{"$f":"INDEX(MainData!$N$58:$N$842,TodayRow,0)","v":0},null,null,"fixedName","CodeName","visibleName"]
[null,"Chart Scaling (Automatic)",null,null,null,null,null,"Ahead","OK","Warning","Danger","Blown",null,{"$f":"xMax","v":53},{"$f":"BufferEndDate+AboveBufferChartDays","v":45138},{"$f":"LeftMin","v":0},{"$f":"WORKDAY(APIData!G3,-BelowZeroChartDays-1)","v":"2023-07-11"},null,null,null,null,null,null,"Prototype 1 ready for testing","Prototype 1 ready for testing",true,null,"Projection Periods","change","timespan","slope","X","Y",null,"ShowOptions","Shown",null,"y","Sheet1","Chart"]
[null,null,"X-Axis","Left Y-Axis",null,"X-Axis","X-Axis 2010","Y-Axis","Y-Axis","Y-Axis","Y-Axis","Y-Axis",null,{"$f":"N2","v":53},{"$f":"BufferEndDate+AboveBufferChartDays","v":45138},{"$f":"P2+LeftMajor","v":1},{"$f":"WORKDAY(Q2,LeftMajor)","v":"2023-07-12"},null,null,null,null,null,null,null,null,null,null,"Whole Project",{"$f":"AI1-AE1","v":{"$error":"#N/A"}},{"$f":"NETWORKDAYS(AG1,DateRun)-1","v":-55},{"$f":"AC3/AD3","v":{"$error":"#N/A"}},{"$f":"MATCH(TRUE,APIData!$H$842<>\"\",0)-1","v":{"$error":"#N/A"}},{"$f":"AE1","v":{"$error":"#N/A"}},null,"Legend",false,null,"y","Sheet2","APIData"]
[null,"Max",{"$f":"MAX(F4:F10)","v":53},{"$f":"BufferDays+AboveBufferChartDays","v":14},null,{"$f":"-0.1","v":-0.1},{"$f":"ProjectStartDate-0.01","v":45062.99},0,{"$f":"GreenOnDay0-((BufferDays-GreenOnDay0-RedOnLastDay-WarningSize)/(BufferEndDate-ProjectStartDate))","v":1.8933333333333333},{"$f":"I4+WarningSize","v":3.8933333333333335},{"$f":"VALUE(BufferDays)","v":14},1000,null,{"$f":"N3","v":53},{"$f":"BufferEndDate+AboveBufferChartDays","v":45138},2,"2023-07-13",null,null,null,null,null,null,null,null,null,null,null,{"$f":"WORKDAY(DateRun,(NETWORKDAYS(DateRun,ProjectUnBufferredEndDate)-1)/(1-AE3))","v":{"$error":"#VALUE!"}},null,null,{"$f":"$AC$1","v":1},{"$f":"INDEX(APIData!$N$1:$N$842,TodayRow,0)","v":"Latest Milestone"},null,"Finish Line",true,null,"y","Sheet3","Formatting"]
[null,"Min",{"$f":"0","v":0},{"$f":"-BelowZeroChartDays","v":0},null,{"$f":"NETWORKDAYS(ProjectStartDate,BufferEndDate)-1","v":53},{"$f":"BufferEndDate+AboveBufferChartDays","v":45138},0,{"$f":"BufferDays-RedOnLastDay-WarningSize","v":10},{"$f":"I5+WarningSize","v":12},14,1000,null,53,{"$f":"BufferEndDate+AboveBufferChartDays","v":45138},3,"2023-07-14",null,null,null,null,null,null,null,null,null,null,null,{"$f":"WORKDAY(ProjectStartDate,(INTERCEPT(AG3:AG4,AF3:AF4)-INTERCEPT(D27:D28,C27:C28))/((SLOPE(D27:D28,C27:C28)-SLOPE(AG3:AG4,AF3:AF4))))","v":{"$error":"#N/A"}},null,null,{"$f":"IF(SLOPE($D$27:$D$28,$C$27:$C$28)>SLOPE(AG3:AG4,AF3:AF4),(INTERCEPT(AG3:AG4,AF3:AF4)-INTERCEPT($D$27:$D$28,$C$27:$C$28)) / ((SLOPE($D$27:$D$28,$C$27:$C$28)-SLOPE(AG3:AG4,AF3:AF4))),$C$28)","v":{"$error":"#N/A"}},{"$f":" $AG$4 + (AF5-$AF$4)*AE3","v":{"$error":"#VALUE!"}},{"$f":"CONCATENATE(AB3,\" Trajectory (\",TEXT(AC4,DateFormatText),\")\")","v":{"$error":"#VALUE!"}},null,null,null,"y","Sheet4","MainData"]
[null,"Crosses",{"$f":"0","v":0},{"$f":"-BelowZeroChartDays","v":0},null,{"$f":"F5+AboveBufferChartDays","v":53},{"$f":"BufferEndDate+AboveBufferChartDays","v":45138},0,{"$f":"I5","v":10},{"$f":"I6+WarningSize","v":12},14,1000,null,53,{"$f":"BufferEndDate+AboveBufferChartDays","v":45138},4,"2023-07-17"]
[null,"Major Axes",5,{"$f":"ROUNDUP((LeftMax-LeftMin)/20,0)","v":1},null,{"$f":"F6","v":53},{"$f":"BufferEndDate+AboveBufferChartDays","v":45138},0,{"$f":"I6","v":10},{"$f":"J6","v":12},14,{"$f":"L6","v":1000},null,53,{"$f":"BufferEndDate+AboveBufferChartDays","v":45138},5,"2023-07-18",null,null,null,null,null,null,null,null,null,null,{"$f":"Chart!K5","v":5},{"$f":"$AI$1-INDEX(MainData!$N$58:$N$842,MATCH(MAX($AG$1,WORKDAY(DateRun,-AB7)),MainData!$A$5:$A$842,0),0)","v":0},{"$f":"AB7","v":5},{"$f":"AC7/AD7","v":0},{"$f":"MAX(0,$AC$1-AD7)","v":0},{"$f":"INDEX(MainData!$N$58:$N$842,MATCH(AF7,MainData!$B$2:$B$842,0),0)","v":0}]
[null,null,"=CHOOSE(ROUND((NETWORKDAYS(ProjectStartDate,BufferEndDate)-1)/40,0),5,5,5,10,10,20,20,20,20,20,20,20,20,20,20,40,40,40,40,40,40)","=CHOOSE(ROUNDUP((LeftMax-LeftMin)/20,0),1,1,5,5,5,10,20,20,20,20,20,20,20,20,20,20,20,20)",null,{"$f":"F7","v":53},{"$f":"BufferEndDate+AboveBufferChartDays","v":45138},0,{"$f":"I7","v":10},12,14,1000,null,53,{"$f":"BufferEndDate+AboveBufferChartDays","v":45138},6,"2023-07-19",null,null,null,null,null,null,null,null,null,null,null,{"$f":"WORKDAY(DateRun,ROUNDUP((NETWORKDAYS(DateRun,ProjectUnBufferredEndDate)-1)/(1-AE7),0))","v":{"$error":"#VALUE!"}},null,null,{"$f":"$AC$1","v":1},{"$f":"VLOOKUP(9999,MainData!$A$1:$CK$357,5,FALSE)","v":{"$error":"#N/A"}}]
["Buffer End Line","Buffer End",{"$f":"NETWORKDAYS(ProjectStartDate,BufferEndDate)-1","v":53},{"$f":"D5","v":0},null,53,{"$f":"BufferEndDate+AboveBufferChartDays","v":45138},0,10,12,14,1000,null,53,{"$f":"BufferEndDate+AboveBufferChartDays","v":45138},7,"2023-07-20",null,null,null,null,null,null,null,null,null,null,null,null,null,null,{"$f":"IF(SLOPE($D$27:$D$28,$C$27:$C$28)>SLOPE(AG7:AG8,AF7:AF8),(INTERCEPT(AG7:AG8,AF7:AF8)-INTERCEPT($D$27:$D$28,$C$27:$C$28)) / ((SLOPE($D$27:$D$28,$C$27:$C$28)-SLOPE(AG7:AG8,AF7:AF8))),$C$28)","v":{"$error":"#N/A"}},{"$f":" $AG$8 + (AF9-$AF$8)*($AG$8-$AG$7)/($AF$8-$AF$7)","v":{"$error":"#N/A"}},{"$f":"CONCATENATE(AB7,\" Day Trajectory (\",IFERROR(TEXT(AC8,DateFormatText),\"\"),\")\")","v":"5 Day Trajectory ()"}]
[null,null,{"$f":"NETWORKDAYS(ProjectStartDate,BufferEndDate)-1","v":53},{"$f":"D4","v":14},null,53,{"$f":"BufferEndDate+AboveBufferChartDays","v":45138},0,10,12,14,1000,null,53,{"$f":"BufferEndDate+AboveBufferChartDays","v":45138},8,"2023-07-21"]
[null,null,null,null,null,53,{"$f":"BufferEndDate+AboveBufferChartDays","v":45138},0,10,12,14,1000,null,53,{"$f":"BufferEndDate+AboveBufferChartDays","v":45138},9,"2023-07-24",null,null,null,null,null,null,null,null,null,null,{"$f":"Chart!K6","v":10},{"$f":"$AI$1-INDEX(MainData!$N$58:$N$842,MATCH(MAX($AG$1,WORKDAY(DateRun,-AB11)),MainData!$A$5:$A$842,0),0)","v":0},{"$f":"AB11","v":10},{"$f":"AC11/AD11","v":0},{"$f":"$AC$1-AD11","v":-9},{"$f":"INDEX(MainData!$N$58:$N$842,MATCH(AF11,MainData!$B$2:$B$842,0),0)","v":{"$error":"#N/A"}}]
[null,"Date Format Text","m/d/yyyy",null,null,53,{"$f":"BufferEndDate+AboveBufferChartDays","v":45138},0,10,12,14,1000,null,53,{"$f":"BufferEndDate+AboveBufferChartDays","v":45138},10,"2023-07-25",null,null,null,null,null,null,null,null,null,null,null,{"$f":"WORKDAY(DateRun,ROUNDUP((NETWORKDAYS(DateRun,ProjectUnBufferredEndDate)-1)/(1-AE11),0))","v":{"$error":"#VALUE!"}},null,null,{"$f":"$AC$1","v":1},{"$f":"VLOOKUP(9999,MainData!$A$1:$CK$357,5,FALSE)","v":{"$error":"#N/A"}}]
[null,null,null,null,null,53,{"$f":"BufferEndDate+AboveBufferChartDays","v":45138},0,10,12,14,1000,null,53,{"$f":"BufferEndDate+AboveBufferChartDays","v":45138},11,"2023-07-26",null,null,null,null,null,null,null,null,null,null,null,null,null,null,{"$f":"IF(SLOPE($D$27:$D$28,$C$27:$C$28)>SLOPE(AG11:AG12,AF11:AF12),(INTERCEPT(AG11:AG12,AF11:AF12)-INTERCEPT($D$27:$D$28,$C$27:$C$28)) / ((SLOPE($D$27:$D$28,$C$27:$C$28)-SLOPE(AG11:AG12,AF11:AF12))),$C$28)","v":{"$error":"#N/A"}},{"$f":" $AG$12 + (AF13-$AF$12)*($AG$12-$AG$11)/($AF$12-$AF$11)","v":{"$error":"#N/A"}},{"$f":"CONCATENATE(AB11,\" Day Trajectory (\",IFERROR(TEXT(AC12,DateFormatText),\"\"),\")\")","v":"10 Day Trajectory ()"}]
[null,"pace car point",null,null,null,53,{"$f":"BufferEndDate+AboveBufferChartDays","v":45138},0,10,12,14,1000,null,53,{"$f":"BufferEndDate+AboveBufferChartDays","v":45138},12,"2023-07-27",null,null,null,null,null,null,null,null,null,{"$f":"IFERROR(INDEX(SeriesNames,SMALL(IF(LEN(SeriesNames)>1,ROW(SeriesNames)-3),ROW(14:14)-3),1),\"\")","v":""}]
[null,{"$f":"NETWORKDAYS(BufferStartDate,GreenYellowDate)","v":2},null,null,null,53,{"$f":"BufferEndDate+AboveBufferChartDays","v":45138},0,10,12,14,1000,null,53,{"$f":"BufferEndDate+AboveBufferChartDays","v":45138},13,"2023-07-28",null,null,null,null,null,null,null,null,null,{"$f":"IFERROR(INDEX(SeriesNames,SMALL(IF(LEN(SeriesNames)>1,ROW(SeriesNames)-3),ROW(15:15)-3),1),\"\")","v":""},{"$f":"NETWORKDAYS(MAX(Chart!K7,ProjectStartDate),DateRun)-1","v":1506},{"$f":"$AI$1-INDEX(MainData!$N$58:$N$842,MATCH(MAX($AG$1,WORKDAY(DateRun,-AB15)),MainData!$A$5:$A$842,0),0)","v":0},{"$f":"AB15","v":1506},{"$f":"AC15/AD15","v":0},{"$f":"$AC$1-AD15","v":-1505},{"$f":"INDEX(MainData!$E$2:$E$842,MATCH(AF15,MainData!$C$2:$C$842,0),0)","v":{"$error":"#N/A"}}]
[null,"dateRunFormatted",{"$f":"TEXT(DATEVALUE(DateRun),DateFormatText) & \" \" & TEXT(TIMEVALUE(DateRun),\"HH:MM\")","v":"5/17/2023 16:44"},null,null,53,{"$f":"BufferEndDate+AboveBufferChartDays","v":45138},0,10,12,14,1000,null,53,{"$f":"BufferEndDate+AboveBufferChartDays","v":45138},14,"2023-07-31",null,null,null,null,null,null,null,null,null,{"$f":"IFERROR(INDEX(SeriesNames,SMALL(IF(LEN(SeriesNames)>1,ROW(SeriesNames)-3),ROW(16:16)-3),1),\"\")","v":""},null,{"$f":"WORKDAY(DateRun,ROUNDUP((NETWORKDAYS(DateRun,ProjectUnBufferredEndDate)-1)/(1-AE15),0))","v":{"$error":"#VALUE!"}},null,null,{"$f":"$AC$1","v":1},{"$f":"VLOOKUP(9999,MainData!$A$1:$CK$357,5,FALSE)","v":{"$error":"#N/A"}}]
[null,"todayrow",{"$f":"IF(MATCH(DATEVALUE(LEFT(DateRun,10)), MainData[Reporting Date], 1)=1,2,MATCH(DATEVALUE(LEFT(DateRun,10)), MainData[Reporting Date], 1)+1)","v":2},null,null,53,{"$f":"BufferEndDate+AboveBufferChartDays","v":45138},0,10,12,14,1000,null,53,{"$f":"BufferEndDate+AboveBufferChartDays","v":45138},15,"2023-08-01",null,null,null,null,null,null,null,null,null,{"$f":"IFERROR(INDEX(SeriesNames,SMALL(IF(LEN(SeriesNames)>1,ROW(SeriesNames)-3),ROW(17:17)-3),1),\"\")","v":""},null,null,null,null,{"$f":"IF(SLOPE($D$27:$D$28,$C$27:$C$28)>SLOPE(AG15:AG16,AF15:AF16),(INTERCEPT(AG15:AG16,AF15:AF16)-INTERCEPT($D$27:$D$28,$C$27:$C$28)) / ((SLOPE($D$27:$D$28,$C$27:$C$28)-SLOPE(AG15:AG16,AF15:AF16))),$C$28)","v":{"$error":"#N/A"}},{"$f":" $AG$16 + (AF17-$AF$16)*($AG$16-$AG$15)/($AF$16-$AF$15)","v":{"$error":"#N/A"}},{"$f":"CONCATENATE(\"Trajectory From \",IFERROR(TEXT(Chart!K7,DateFormatText),\"\"),\" (\",IFERROR(TEXT(AC16,DateFormatText),\"\"),\")\")","v":"Trajectory From 8/8/2017 ()"}]
[null,"APICall","APIBufferReport2b",null,null,53,{"$f":"BufferEndDate+AboveBufferChartDays","v":45138},0,10,12,14,1000,null,53,{"$f":"BufferEndDate+AboveBufferChartDays","v":45138},16,"2023-08-02",null,null,null,null,null,null,null,null,null,{"$f":"IFERROR(INDEX(SeriesNames,SMALL(IF(LEN(SeriesNames)>1,ROW(SeriesNames)-3),ROW(18:18)-3),1),\"\")","v":""}]
[null,null,null,null,null,53,{"$f":"BufferEndDate+AboveBufferChartDays","v":45138},0,10,12,14,1000,null,53,{"$f":"BufferEndDate+AboveBufferChartDays","v":45138},17,"2023-08-03",null,null,null,null,null,null,null,null,null,{"$f":"IFERROR(INDEX(SeriesNames,SMALL(IF(LEN(SeriesNames)>1,ROW(SeriesNames)-3),ROW(19:19)-3),1),\"\")","v":""}]
[null,null,null,null,null,53,{"$f":"BufferEndDate+AboveBufferChartDays","v":45138},0,10,12,14,1000,null,53,{"$f":"BufferEndDate+AboveBufferChartDays","v":45138},18,"2023-08-04",null,null,null,null,null,null,null,null,null,{"$f":"IFERROR(INDEX(SeriesNames,SMALL(IF(LEN(SeriesNames)>1,ROW(SeriesNames)-3),ROW(20:20)-3),1),\"\")","v":""}]
[null,"Completion Target Date",{"$f":"WORKDAY(BufferEndDate,1)","v":"2023-08-01"},null,null,53,{"$f":"BufferEndDate+AboveBufferChartDays","v":45138},0,10,12,14,1000,null,53,{"$f":"BufferEndDate+AboveBufferChartDays","v":45138},19,"2023-08-07",null,null,null,null,null,null,null,null,null,{"$f":"IFERROR(INDEX(SeriesNames,SMALL(IF(LEN(SeriesNames)>1,ROW(SeriesNames)-3),ROW(21:21)-3),1),\"\")","v":""}]
[null,null,null,null,null,53,{"$f":"BufferEndDate+AboveBufferChartDays","v":45138},0,10,12,14,1000,null,53,{"$f":"BufferEndDate+AboveBufferChartDays","v":45138},20,"2023-08-08",null,null,null,null,null,null,null,null,null,{"$f":"IFERROR(INDEX(SeriesNames,SMALL(IF(LEN(SeriesNames)>1,ROW(SeriesNames)-3),ROW(22:22)-3),1),\"\")","v":""},null,null,null,null,null,null,null,"Buffer End Line",true]
[null,null,null,null,null,53,{"$f":"BufferEndDate+AboveBufferChartDays","v":45138},0,10,12,14,1000,null,53,{"$f":"BufferEndDate+AboveBufferChartDays","v":45138},21,"2023-08-09",null,null,null,null,null,null,null,null,null,{"$f":"IFERROR(INDEX(SeriesNames,SMALL(IF(LEN(SeriesNames)>1,ROW(SeriesNames)-3),ROW(23:23)-3),1),\"\")","v":""},null,null,null,null,null,null,null,"Whole Project Trajectory",false]
["Finish Line 2010","Intersection Line",{"$f":"WORKDAY(BufferStartDate,-1)+LeftMin","v":45118},{"$f":"D27","v":0},null,53,{"$f":"BufferEndDate+AboveBufferChartDays","v":45138},0,10,12,14,1000,null,53,{"$f":"BufferEndDate+AboveBufferChartDays","v":45138},22,"2023-08-10",null,null,null,null,null,null,null,null,null,{"$f":"IFERROR(INDEX(SeriesNames,SMALL(IF(LEN(SeriesNames)>1,ROW(SeriesNames)-3),ROW(24:24)-3),1),\"\")","v":""},null,null,null,null,null,null,null,"Min Trajectory",false]
[null,null,{"$f":"BufferEndDate+AboveBufferChartDays","v":45138},{"$f":"D10","v":14},{"$f":"C25","v":"2023-07-31"},53,{"$f":"BufferEndDate+AboveBufferChartDays","v":45138},0,10,12,14,1000,null,53,{"$f":"BufferEndDate+AboveBufferChartDays","v":45138},23,"2023-08-11",null,null,null,null,{"$f":"IF(U25=\"\",\"\",VLOOKUP(U25,SeriesAll,2,FALSE))","v":""},null,null,null,null,{"$f":"IFERROR(INDEX(SeriesNames,SMALL(IF(LEN(SeriesNames)>1,ROW(SeriesNames)-3),ROW(25:25)-3),1),\"\")","v":""},null,null,null,null,null,null,null,"Max Trajectory",false]
[null,null,null,null,null,53,{"$f":"BufferEndDate+AboveBufferChartDays","v":45138},0,10,12,14,1000,null,53,{"$f":"BufferEndDate+AboveBufferChartDays","v":45138},24,"2023-08-14",null,null,null,null,null,null,null,null,null,null,null,null,null,null,null,null,null,"Specific Date Trajectory",false]
["Finish Line 2013","Intersection Line",{"$f":"NETWORKDAYS(ProjectStartDate,WORKDAY(BufferStartDate,-1))+LeftMin","v":40},{"$f":"D5","v":0},null,53,{"$f":"BufferEndDate+AboveBufferChartDays","v":45138},0,10,12,14,1000]
[null,null,{"$f":"xMax","v":53},{"$f":"D10","v":14},null,53,{"$f":"BufferEndDate+AboveBufferChartDays","v":45138},0,10,12,14,1000,null,null,null,null,null,null,null,null,null,null,null,null,null,null,null,null,null,null,null,null,null,null,null,"report types",null,null,"Finish Task Designation","instructions?","has instructions?",null,null,"Tracks to Chart","instructions?","has instructions?"]
[null,null,null,null,null,53,{"$f":"BufferEndDate+AboveBufferChartDays","v":45138},0,10,12,14,1000,null,null,null,null,null,null,null,null,null,null,null,null,null,null,null,null,null,null,null,null,null,null,null,"Designated Milestone/Task","Designated Milestones/Tasks","in same project as buffer","The Major Milestone in Same Summary as Buffer Task","to the description of the buffer task and milestones/tasks to track in the chart",true,1,null,"Designated Milestones/Tasks","to the description of the buffer task and milestones/tasks to track in the chart",true,1,null,"in same project as buffer",null,1]
[null,null,null,null,null,53,{"$f":"BufferEndDate+AboveBufferChartDays","v":45138},0,10,12,14,1000,null,null,null,null,null,null,null,null,null,null,null,null,null,null,null,null,null,{"$f":"WORKDAY(DateRun,ROUND((NETWORKDAYS(DateRun,ProjectUnBufferredEndDate))/(1-AE3),0))","v":{"$error":"#VALUE!"}},null,null,null,null,null,{"$f":"VLOOKUP(AJ29,AM29:AP33,4,FALSE)","v":2},{"$f":"VLOOKUP(AK29,AR29:AU33,4,FALSE)","v":1},{"$f":"VLOOKUP(AL29,AW29:AZ33,3,FALSE)","v":1},"Designated Milestone/Task","to the description of the buffer task and milestones/tasks to track in the chart",true,2,null,"A designated task and its direct predecessors","to the description of the buffer task and milestones/tasks to track in the chart",true,2,null,"in same summary task as buffer",null,2]
[null,null,null,null,null,53,{"$f":"BufferEndDate+AboveBufferChartDays","v":45138},0,10,12,14,1000,null,null,null,0.1,null,null,null,null,null,null,null,null,null,null,null,null,null,null,null,null,null,null,null,null,null,null,null,null,null,null,null,"its furthest upstream queued predecessors",null,true,3,null,"anywhere",null,3]
[null,null,null,null,null,53,{"$f":"BufferEndDate+AboveBufferChartDays","v":45138},0,10,12,14,1000,null,{"$f":"Xmin","v":0},null,{"$f":"LeftMin+$P$31","v":0.1},{"$f":"WORKDAY(APIData!F3,N32)","v":"2023-05-17"}]
[null,"MaxDaysAboveBuffer",-14,"=MAX(0,IFERROR(MAX(Data!$E$5:$E$999,Data!$G$5:$G$999,Data!$I$5:I999,Data!K5:K999,Data!M5:M999,Data!O5:O999,Data!Q5:Q999,Data!S5:SG999,Data!U5:U999,Data!W5:W999,Data!Y5:Y999,Data!AA5:AA999,Data!AC5:AC999,Data!AE5:AE999,Data!AG5:AG999,Data!AI5:AIK999,Data!AK5:AK999,Data!AM5:AM999,Data!AO5:AO999,Data!AQ5:AQ999)-BufferDays,0))",null,53,{"$f":"BufferEndDate+AboveBufferChartDays","v":45138},0,10,12,14,1000,null,{"$f":"N32+XMajor","v":5},null,0.1,{"$f":"WORKDAY(ProjectStartDate,N33)","v":"2023-05-24"},null,null,null,null,null,null,null,null,null,null,null,null,null,null,null,null,null,null,null,null,"Cloud server","canceled"]
[null,"MinDaysBelowZero",0,null,null,53,{"$f":"BufferEndDate+AboveBufferChartDays","v":45138},0,10,12,14,1000,null,10,null,0.1,{"$f":"WORKDAY(ProjectStartDate,N34)","v":"2023-05-31"},null,null,null,null,null,null,null,null,null,null,null,null,null,null,null,null,null,null,null,"ConnectionInfo",{"$f":"IF(ISERROR(SEARCH(\"Cloud\",AL33)),TRUE,FALSE)","v":false},false]
[null,"BelowZeroValue","auto",null,null,53,{"$f":"BufferEndDate+AboveBufferChartDays","v":45138},0,10,12,14,1000,null,15,null,0.1,{"$f":"WORKDAY(ProjectStartDate,N35)","v":"2023-06-07"},null,null,null,null,null,null,null,null,null,null,null,null,null,null,null,null,null,null,null,"Site Name","reportsdev","reportsdev"]
[null,"AboveBufferValue","auto","'",null,53,{"$f":"BufferEndDate+AboveBufferChartDays","v":45138},0,10,12,14,1000,null,20,null,0.1,{"$f":"WORKDAY(ProjectStartDate,N36)","v":"2023-06-14"},null,null,null,null,null,null,null,null,null,null,null,null,null,null,null,null,null,null,null,null,null,"bearer k-_wWA5VMkwgRWarKKqkTM-Iykc1NB--kdPpHMvBM0RNLaf7snK9na9peHGGXPUWVu8RmXd3yR7byQllfwnqlRItQGAkmAUlamFzU_no_aL8v0RXBadmKpx28QpxtsRgwlMKnFPCa8Lu3UHSjrnGGB0T522nWaGUHBOz67nv8u-fmDPlSIgMZfVAfNt2kKYbBMD5VB57tqVNemWgyROj_7bHIjetlaGuUEXSRvIRu_x3zWARcPmwGcY3Zv9Y4xzBIQbJBh-1p_FSZ7HntHYf_eBh5Q8DooF1N8qIhnszchJiLF1_SVX1ns0qQzksIRCf0zsA_ozjl_PaLD5QsVfe8KU66i4PV-xfOVzEkrB_AiPNgYGbaYYdfR4gEgrYKYn8fU0qgrtSdjRJbXEyTp-VlH6fGKntlg5XTSzqBDx9rm8KNEzT1MY9xu5PT0LyV5yN57CFITx4Hb1gWgep1T_Yi0lOnYgWzePl-xZl9jdR6oCWiDfXLjpVArJrV7b6-qW6NKcNOEMv8TqXNpRpqNtKcLhntQjvu3Um3F4N-hMAWbCILSW_P6eT4g6xyOKZQ7hgbdDNwdRHu382DXxplDcsf3Vs4XxYMaiacd-JUApJcH6MO2A4XSdTFLE_ylwHOxcc35turkNpcwkQXRz8tYvzJMesD1ZB2kYMX0IBZeRoW3k1Vw1EhOUQx5tivNOfeR_SUII9slIBZ_ZN0E_Ui3mkMuX1_FfeJMH1egxNCZDUEZmFVSGNJbeEdP-I2F2SnSW0EdbwvAPdqsG_cz8MdfOlVMu_DmAW3_nRWwu0l84v4D-MPDDfC4mHNwvZ5t6wXnqLmm6JCo2E1uUmyzC8BnAyi0dFMxSlFbu62-Pcw5rIZGuiFzMmMTCp6-JPHd4fE-cUquZuA6YVDj-AHmLUS4MjZAmya-NeaC7mu8egfqp4doZ-OJC_yuzwdmzmFPTkTuetJl7R4w-UpAJjmALKih5g3w"," "]
["Excel Versions","2010-",1,null,null,53,{"$f":"BufferEndDate+AboveBufferChartDays","v":45138},0,10,12,14,1000,null,25,null,0.1,{"$f":"WORKDAY(ProjectStartDate,N37)","v":"2023-06-21"},null,null,null,null,null,null,null,null,null,null,null,null,null,null,null,null,null,null,null,"FoundSite","FoundCode"]
["2013+","2013+",2,null,null,53,{"$f":"BufferEndDate+AboveBufferChartDays","v":45138},0,10,12,14,1000,null,30,null,0.1,{"$f":"WORKDAY(ProjectStartDate,N38)","v":"2023-06-28"},null,null,null,null,null,null,null,null,null,null,null,null,null,null,null,null,null,null,null,1,1]
[{"$f":"VLOOKUP(A38,B37:C38,2,FALSE)","v":2},null,null,null,null,53,{"$f":"BufferEndDate+AboveBufferChartDays","v":45138},0,10,{"$f":"J38","v":12},14,{"$f":"L38","v":1000},null,35,null,0.1,{"$f":"WORKDAY(ProjectStartDate,N39)","v":"2023-07-05"},null,null,null,null,null,null,null,null,null,null,null,null,null,null,null,null,null,null,null,"reportUsage",true,true]
[null,null,1.2,null,null,53,{"$f":"BufferEndDate+AboveBufferChartDays","v":45138},0,10,12,14,1000,null,40,null,0.1,{"$f":"WORKDAY(ProjectStartDate,N40)","v":"2023-07-12"},null,null,null,null,null,null,null,null,null,null,null,null,null,null,null,null,null,null,null,null,null,null,null,"accuer",0,true]
[null,"DecimalChar",{"$f":"LEFT(RIGHT(C40,2),1)","v":"."},null,null,53,{"$f":"BufferEndDate+AboveBufferChartDays","v":45138},0,10,12,14,1000,null,45,null,0.1,{"$f":"WORKDAY(ProjectStartDate,N41)","v":"2023-07-19"}]
[null,null,null,null,null,53,{"$f":"BufferEndDate+AboveBufferChartDays","v":45138},0,10,12,14,1000,null,50,null,0.1,{"$f":"WORKDAY(ProjectStartDate,N42)","v":"2023-07-26"}]
[null,null,null,null,null,53,{"$f":"BufferEndDate+AboveBufferChartDays","v":45138},0,10,12,14,1000,null,55,null,0.1,{"$f":"WORKDAY(ProjectStartDate,N43)","v":"2023-08-02"}]
[null,"LegendLeft",405.04,null,null,53,{"$f":"BufferEndDate+AboveBufferChartDays","v":45138},0,10,12,14,1000,null,60,null,0.1,{"$f":"WORKDAY(ProjectStartDate,N44)","v":"2023-08-09"}]
[null,"LegendTop",271.73267716535435,null,null,53,{"$f":"BufferEndDate+AboveBufferChartDays","v":45138},0,10,12,14,1000,null,65,null,0.1,{"$f":"WORKDAY(ProjectStartDate,N45)","v":"2023-08-16"},null,null,null,null,null,null,null,null,null,null,null,null,null,null,null,null,null,null,null,"ServerTypes","Cloud server"]
[null,"LegendWidth",228.60700787401575,null,null,53,{"$f":"BufferEndDate+AboveBufferChartDays","v":45138},0,10,12,14,1000,null,70,null,0.1,{"$f":"WORKDAY(ProjectStartDate,N46)","v":"2023-08-23"},null,null,null,null,null,null,null,null,null,null,null,null,null,null,null,null,null,null,null,null,"Local company server"]
[null,null,null,null,null,53,{"$f":"BufferEndDate+AboveBufferChartDays","v":45138},0,10,12,14,1000,null,75,null,0.1,{"$f":"WORKDAY(ProjectStartDate,N47)","v":"2023-08-30"}]
[null,null,null,null,null,53,{"$f":"BufferEndDate+AboveBufferChartDays","v":45138},0,10,12,14,1000,null,80,null,0.1,{"$f":"WORKDAY(ProjectStartDate,N48)","v":"2023-09-06"}]
[null,"OldBufferName",null,null,null,53,{"$f":"BufferEndDate+AboveBufferChartDays","v":45138},0,10,12,14,1000,null,85,null,0.1,{"$f":"WORKDAY(ProjectStartDate,N49)","v":"2023-09-13"}]
[null,null,null,null,null,53,{"$f":"BufferEndDate+AboveBufferChartDays","v":45138},0,10,12,14,1000,null,90,null,0.1,{"$f":"WORKDAY(ProjectStartDate,N50)","v":"2023-09-20"}]
[null,null,null,null,null,53,{"$f":"BufferEndDate+AboveBufferChartDays","v":45138},0,10,12,14,1000,null,95,null,0.1,{"$f":"WORKDAY(ProjectStartDate,N51)","v":"2023-09-27"}]
["ColorVeryGood",null,null,null,null,53,{"$f":"BufferEndDate+AboveBufferChartDays","v":45138},0,10,12,14,1000,null,100,null,0.1,{"$f":"WORKDAY(ProjectStartDate,N52)","v":"2023-10-04"}]
["ColorGood",null,null,null,null,53,{"$f":"BufferEndDate+AboveBufferChartDays","v":45138},0,10,12,14,1000,null,105,null,0.1,{"$f":"WORKDAY(ProjectStartDate,N53)","v":"2023-10-11"}]
["ColorWarning",null,null,null,null,53,{"$f":"BufferEndDate+AboveBufferChartDays","v":45138},0,10,12,14,1000,null,110,null,0.1,{"$f":"WORKDAY(ProjectStartDate,N54)","v":"2023-10-18"}]
["ColorBad",null,null,null,null,53,{"$f":"BufferEndDate+AboveBufferChartDays","v":45138},0,10,12,14,1000,null,115,null,0.1,{"$f":"WORKDAY(ProjectStartDate,N55)","v":"2023-10-25"}]
["ColorVeryBad",null,null,null,null,53,{"$f":"BufferEndDate+AboveBufferChartDays","v":45138},0,10,12,14,1000,null,120,null,0.1,{"$f":"WORKDAY(ProjectStartDate,N56)","v":"2023-11-01"}]
[null,null,null,null,null,53,{"$f":"BufferEndDate+AboveBufferChartDays","v":45138},0,10,12,14,1000,null,125,null,0.1,{"$f":"WORKDAY(ProjectStartDate,N57)","v":"2023-11-08"}]
[null,null,null,null,null,53,{"$f":"BufferEndDate+AboveBufferChartDays","v":45138},0,10,12,14,1000,null,130,null,0.1,{"$f":"WORKDAY(ProjectStartDate,N58)","v":"2023-11-15"}]
[null,"let\n    Source = Json.Document(Web.Contents(\"##Site\",\n        [\n        RelativePath=\"3.0_Services/api/##APICall/Get\",\n        Query=\n        [\n            ReportName=Uri.EscapeDataString(\"##ReportName\"),\n            StepSize=\"##StepSize\",\n            Wf=\"##Wf\",\n            Wt=\"##Wt\",\n            Ws=\"##Ws\",\n            calledBy=\"API\",\n            TimeZone=#\"Time Zone\",\n            output=\"all2\",\n            login=\"##username\"\n        ],\n         Headers=[Authorization=\"##Key\"]])),\n    #\"Converted to Table\" = Table.FromList(Source, Splitter.SplitByNothing(), null, null, ExtraValues.Error),\n    #\"Expanded Column1\" = Table.ExpandRecordColumn(#\"Converted to Table\", \"Column1\",  Table.ColumnNames(Table.FromRecords(List.Select(Table.Column(#\"Converted to Table\",\"Column1\"),each _ <> null and _ <> \"\"))),Table.ColumnNames(Table.FromRecords(Table.Column(#\"Converted to Table\",\"Column1\"))))\nin\n    #\"Expanded Column1\"",null,null,null,53,{"$f":"BufferEndDate+AboveBufferChartDays","v":45138},0,10,12,14,1000,null,135,null,0.1,{"$f":"WORKDAY(ProjectStartDate,N59)","v":"2023-11-22"}]
[null,null,null,null,null,53,{"$f":"BufferEndDate+AboveBufferChartDays","v":45138},0,10,12,14,1000,null,140,null,0.1,{"$f":"WORKDAY(ProjectStartDate,N60)","v":"2023-11-29"}]
[null,"let\n    Source = Json.Document(Web.Contents(\"##Site\",\n        [\n        RelativePath=\"api/api/##APICall\",\n        Query=\n        [\n            Username=Uri.EscapeDataString(\"##Username\"),\n            Password=Uri.EscapeDataString(\"##Password\")\n        ],\n         Headers=[Authorization=\"##Key\"]])),\n       #\"Converted to Table\" = #table(1, {{Source}})\nin\n    #\"Converted to Table\"",null,null,null,53,{"$f":"BufferEndDate+AboveBufferChartDays","v":45138},0,10,12,14,1000,null,145,null,0.1,{"$f":"WORKDAY(ProjectStartDate,N61)","v":"2023-12-06"}]
[null,null,null,null,null,53,{"$f":"BufferEndDate+AboveBufferChartDays","v":45138},0,10,12,14,1000,null,150,null,0.1,{"$f":"WORKDAY(ProjectStartDate,N62)","v":"2023-12-13"}]
[null,null,null,null,null,53,{"$f":"BufferEndDate+AboveBufferChartDays","v":45138},0,10,12,14,1000,null,155,null,0.1,{"$f":"WORKDAY(ProjectStartDate,N63)","v":"2023-12-20"}]
[null,null,null,null,null,53,{"$f":"BufferEndDate+AboveBufferChartDays","v":45138},0,10,12,14,1000,null,160,null,{"$f":"LeftMin+$P$31","v":0.1},{"$f":"WORKDAY(ProjectStartDate,N64)","v":"2023-12-27"}]
[null,null,null,null,null,53,{"$f":"BufferEndDate+AboveBufferChartDays","v":45138},0,10,12,14,1000,null,{"$f":"N64+XMajor","v":165},null,0.1,{"$f":"WORKDAY(ProjectStartDate,N65)","v":"2024-01-03"}]
[null,null,null,null,null,53,{"$f":"BufferEndDate+AboveBufferChartDays","v":45138},0,10,12,14,1000,null,170,null,0.1,{"$f":"WORKDAY(ProjectStartDate,N66)","v":"2024-01-10"}]
[null,null,null,null,null,53,{"$f":"BufferEndDate+AboveBufferChartDays","v":45138},0,10,12,14,1000,null,175,null,0.1,{"$f":"WORKDAY(ProjectStartDate,N67)","v":"2024-01-17"}]
[null,null,null,null,null,53,{"$f":"BufferEndDate+AboveBufferChartDays","v":45138},0,10,12,{"$f":"VALUE(BufferDays)","v":14},1000,null,180,null,0.1,{"$f":"WORKDAY(ProjectStartDate,N68)","v":"2024-01-24"}]
[null,null,null,null,null,53,{"$f":"BufferEndDate+AboveBufferChartDays","v":45138},0,10,12,14,1000,null,185,null,0.1,{"$f":"WORKDAY(ProjectStartDate,N69)","v":"2024-01-31"}]
[null,null,null,null,null,53,{"$f":"BufferEndDate+AboveBufferChartDays","v":45138},0,10,12,14,1000,null,190,null,0.1,{"$f":"WORKDAY(ProjectStartDate,N70)","v":"2024-02-07"}]
[null,null,null,null,null,53,{"$f":"BufferEndDate+AboveBufferChartDays","v":45138},0,10,{"$f":"J70","v":12},14,{"$f":"L70","v":1000},null,195,null,0.1,{"$f":"WORKDAY(ProjectStartDate,N71)","v":"2024-02-14"}]
[null,null,null,null,null,{"$f":"F71","v":53},{"$f":"BufferEndDate+AboveBufferChartDays","v":45138},0,{"$f":"I71","v":10},12,14,1000,null,200,null,0.1,{"$f":"WORKDAY(ProjectStartDate,N72)","v":"2024-02-21"}]
[null,null,null,null,null,53,{"$f":"BufferEndDate+AboveBufferChartDays","v":45138},0,10,12,14,1000,null,205,null,0.1,{"$f":"WORKDAY(ProjectStartDate,N73)","v":"2024-02-28"}]
[null,null,null,null,null,53,{"$f":"BufferEndDate+AboveBufferChartDays","v":45138},0,10,12,14,1000,null,210,null,0.1,{"$f":"WORKDAY(ProjectStartDate,N74)","v":"2024-03-06"}]
[null,null,null,null,null,53,{"$f":"BufferEndDate+AboveBufferChartDays","v":45138},0,10,12,14,1000,null,215,null,0.1,{"$f":"WORKDAY(ProjectStartDate,N75)","v":"2024-03-13"}]
[null,null,null,null,null,53,{"$f":"BufferEndDate+AboveBufferChartDays","v":45138},0,10,12,14,1000,null,220,null,0.1,{"$f":"WORKDAY(ProjectStartDate,N76)","v":"2024-03-20"}]
[null,null,null,null,null,53,{"$f":"BufferEndDate+AboveBufferChartDays","v":45138},0,10,12,14,1000,null,225,null,0.1,{"$f":"WORKDAY(ProjectStartDate,N77)","v":"2024-03-27"}]
[null,null,null,null,null,53,{"$f":"BufferEndDate+AboveBufferChartDays","v":45138},0,10,12,14,1000,null,230,null,0.1,{"$f":"WORKDAY(ProjectStartDate,N78)","v":"2024-04-03"}]
[null,null,null,null,null,53,{"$f":"BufferEndDate+AboveBufferChartDays","v":45138},0,10,12,14,1000,null,235,null,0.1,{"$f":"WORKDAY(ProjectStartDate,N79)","v":"2024-04-10"}]
[null,null,null,null,null,53,{"$f":"BufferEndDate+AboveBufferChartDays","v":45138},0,10,12,14,1000,null,240,null,0.1,{"$f":"WORKDAY(ProjectStartDate,N80)","v":"2024-04-17"}]
[null,null,null,null,null,53,{"$f":"BufferEndDate+AboveBufferChartDays","v":45138},0,10,12,14,1000,null,245,null,0.1,{"$f":"WORKDAY(ProjectStartDate,N81)","v":"2024-04-24"}]
[null,null,null,null,null,53,{"$f":"BufferEndDate+AboveBufferChartDays","v":45138},0,10,12,14,1000,null,250,null,0.1,{"$f":"WORKDAY(ProjectStartDate,N82)","v":"2024-05-01"}]
[null,null,null,null,null,53,{"$f":"BufferEndDate+AboveBufferChartDays","v":45138},0,10,12,14,1000,null,255,null,0.1,{"$f":"WORKDAY(ProjectStartDate,N83)","v":"2024-05-08"}]
[null,null,null,null,null,53,{"$f":"BufferEndDate+AboveBufferChartDays","v":45138},0,10,12,14,1000,null,260,null,0.1,{"$f":"WORKDAY(ProjectStartDate,N84)","v":"2024-05-15"}]
[null,null,null,null,null,53,{"$f":"BufferEndDate+AboveBufferChartDays","v":45138},0,10,12,14,1000,null,265,null,0.1,{"$f":"WORKDAY(ProjectStartDate,N85)","v":"2024-05-22"}]
[null,null,null,null,null,53,{"$f":"BufferEndDate+AboveBufferChartDays","v":45138},0,10,12,14,1000,null,270,null,0.1,{"$f":"WORKDAY(ProjectStartDate,N86)","v":"2024-05-29"}]
[null,null,null,null,null,53,{"$f":"BufferEndDate+AboveBufferChartDays","v":45138},0,10,12,14,1000,null,275,null,0.1,{"$f":"WORKDAY(ProjectStartDate,N87)","v":"2024-06-05"}]
[null,null,null,null,null,53,{"$f":"BufferEndDate+AboveBufferChartDays","v":45138},0,10,12,14,1000,null,280,null,0.1,{"$f":"WORKDAY(ProjectStartDate,N88)","v":"2024-06-12"}]
[null,null,null,null,null,53,{"$f":"BufferEndDate+AboveBufferChartDays","v":45138},0,10,12,14,1000,null,285,null,0.1,{"$f":"WORKDAY(ProjectStartDate,N89)","v":"2024-06-19"}]
[null,null,null,null,null,53,{"$f":"BufferEndDate+AboveBufferChartDays","v":45138},0,10,12,14,1000,null,290,null,0.1,{"$f":"WORKDAY(ProjectStartDate,N90)","v":"2024-06-26"}]
[null,null,null,null,null,53,{"$f":"BufferEndDate+AboveBufferChartDays","v":45138},0,10,12,14,1000,null,295,null,0.1,{"$f":"WORKDAY(ProjectStartDate,N91)","v":"2024-07-03"}]
[null,null,null,null,null,53,{"$f":"BufferEndDate+AboveBufferChartDays","v":45138},0,10,12,14,1000,null,300,null,0.1,{"$f":"WORKDAY(ProjectStartDate,N92)","v":"2024-07-10"}]
[null,null,null,null,null,53,{"$f":"BufferEndDate+AboveBufferChartDays","v":45138},0,10,12,14,1000,null,305,null,0.1,{"$f":"WORKDAY(ProjectStartDate,N93)","v":"2024-07-17"}]
[null,null,null,null,null,53,{"$f":"BufferEndDate+AboveBufferChartDays","v":45138},0,10,12,14,1000,null,310,null,0.1,{"$f":"WORKDAY(ProjectStartDate,N94)","v":"2024-07-24"}]
[null,null,null,null,null,53,{"$f":"BufferEndDate+AboveBufferChartDays","v":45138},0,10,12,14,1000,null,315,null,0.1,{"$f":"WORKDAY(ProjectStartDate,N95)","v":"2024-07-31"}]
[null,null,null,null,null,53,{"$f":"BufferEndDate+AboveBufferChartDays","v":45138},0,10,12,14,1000,null,320,null,0.1,{"$f":"WORKDAY(ProjectStartDate,N96)","v":"2024-08-07"}]
[null,null,null,null,null,53,{"$f":"BufferEndDate+AboveBufferChartDays","v":45138},0,10,12,14,1000,null,325,null,0.1,{"$f":"WORKDAY(ProjectStartDate,N97)","v":"2024-08-14"}]
[null,null,null,null,null,53,{"$f":"BufferEndDate+AboveBufferChartDays","v":45138},0,10,12,14,1000,null,330,null,0.1,{"$f":"WORKDAY(ProjectStartDate,N98)","v":"2024-08-21"}]
[null,null,null,null,null,53,{"$f":"BufferEndDate+AboveBufferChartDays","v":45138},0,10,12,14,1000,null,335,null,0.1,{"$f":"WORKDAY(ProjectStartDate,N99)","v":"2024-08-28"}]
[null,null,null,null,null,53,{"$f":"BufferEndDate+AboveBufferChartDays","v":45138},0,10,12,14,1000,null,340,null,0.1,{"$f":"WORKDAY(ProjectStartDate,N100)","v":"2024-09-04"}]
[null,null,null,null,null,53,{"$f":"BufferEndDate+AboveBufferChartDays","v":45138},0,10,12,14,1000,null,345,null,0.1,{"$f":"WORKDAY(ProjectStartDate,N101)","v":"2024-09-11"}]
[null,null,null,null,null,53,{"$f":"BufferEndDate+AboveBufferChartDays","v":45138},0,10,12,14,1000,null,350,null,0.1,{"$f":"WORKDAY(ProjectStartDate,N102)","v":"2024-09-18"}]
[null,null,null,null,null,53,{"$f":"BufferEndDate+AboveBufferChartDays","v":45138},0,10,12,14,1000,null,355,null,0.1,{"$f":"WORKDAY(ProjectStartDate,N103)","v":"2024-09-25"}]
[null,null,null,null,null,53,{"$f":"BufferEndDate+AboveBufferChartDays","v":45138},0,{"$f":"I103","v":10},12,14,1000,null,360,null,0.1,{"$f":"WORKDAY(ProjectStartDate,N104)","v":"2024-10-02"}]
[null,null,null,null,null,53,{"$f":"BufferEndDate+AboveBufferChartDays","v":45138},0,10,12,14,1000,null,365,null,0.1,{"$f":"WORKDAY(ProjectStartDate,N105)","v":"2024-10-09"}]
[null,null,null,null,null,53,{"$f":"BufferEndDate+AboveBufferChartDays","v":45138},0,10,12,14,1000,null,370,null,0.1,{"$f":"WORKDAY(ProjectStartDate,N106)","v":"2024-10-16"}]
[null,null,null,null,null,53,{"$f":"BufferEndDate+AboveBufferChartDays","v":45138},0,10,12,14,1000,null,375,null,0.1,{"$f":"WORKDAY(ProjectStartDate,N107)","v":"2024-10-23"}]
[null,null,null,null,null,53,{"$f":"BufferEndDate+AboveBufferChartDays","v":45138},0,10,12,14,1000,null,380,null,0.1,{"$f":"WORKDAY(ProjectStartDate,N108)","v":"2024-10-30"}]
[null,null,null,null,null,53,{"$f":"BufferEndDate+AboveBufferChartDays","v":45138},0,10,12,14,1000,null,385,null,0.1,{"$f":"WORKDAY(ProjectStartDate,N109)","v":"2024-11-06"}]
[null,null,null,null,null,53,{"$f":"BufferEndDate+AboveBufferChartDays","v":45138},0,10,12,14,1000,null,390,null,0.1,{"$f":"WORKDAY(ProjectStartDate,N110)","v":"2024-11-13"}]
[null,null,null,null,null,53,{"$f":"BufferEndDate+AboveBufferChartDays","v":45138},0,10,12,14,1000,null,395,null,0.1,{"$f":"WORKDAY(ProjectStartDate,N111)","v":"2024-11-20"}]
[null,null,null,null,null,53,{"$f":"BufferEndDate+AboveBufferChartDays","v":45138},0,10,12,14,1000,null,400,null,0.1,{"$f":"WORKDAY(ProjectStartDate,N112)","v":"2024-11-27"}]
[null,null,null,null,null,53,{"$f":"BufferEndDate+AboveBufferChartDays","v":45138},0,10,12,14,1000,null,405,null,0.1,{"$f":"WORKDAY(ProjectStartDate,N113)","v":"2024-12-04"}]
[null,null,null,null,null,53,{"$f":"BufferEndDate+AboveBufferChartDays","v":45138},0,10,12,14,1000,null,410,null,0.1,{"$f":"WORKDAY(ProjectStartDate,N114)","v":"2024-12-11"}]
[null,null,null,null,null,53,{"$f":"BufferEndDate+AboveBufferChartDays","v":45138},0,10,12,14,1000,null,415,null,0.1,{"$f":"WORKDAY(ProjectStartDate,N115)","v":"2024-12-18"}]
[null,null,null,null,null,53,{"$f":"BufferEndDate+AboveBufferChartDays","v":45138},0,10,12,14,1000,null,420,null,0.1,{"$f":"WORKDAY(ProjectStartDate,N116)","v":"2024-12-25"}]
[null,null,null,null,null,53,{"$f":"BufferEndDate+AboveBufferChartDays","v":45138},0,10,12,14,1000,null,425,null,0.1,{"$f":"WORKDAY(ProjectStartDate,N117)","v":"2025-01-01"}]
[null,null,null,null,null,53,{"$f":"BufferEndDate+AboveBufferChartDays","v":45138},0,10,12,14,1000,null,430,null,0.1,{"$f":"WORKDAY(ProjectStartDate,N118)","v":"2025-01-08"}]
[null,null,null,null,null,53,{"$f":"BufferEndDate+AboveBufferChartDays","v":45138},0,10,12,14,1000,null,435,null,0.1,{"$f":"WORKDAY(ProjectStartDate,N119)","v":"2025-01-15"}]
[null,null,null,null,null,53,{"$f":"BufferEndDate+AboveBufferChartDays","v":45138},0,10,12,14,1000,null,440,null,0.1,{"$f":"WORKDAY(ProjectStartDate,N120)","v":"2025-01-22"}]
[null,null,null,null,null,53,{"$f":"BufferEndDate+AboveBufferChartDays","v":45138},0,10,12,14,1000,null,445,null,0.1,{"$f":"WORKDAY(ProjectStartDate,N121)","v":"2025-01-29"}]
[null,null,null,null,null,53,{"$f":"BufferEndDate+AboveBufferChartDays","v":45138},0,10,12,14,1000,null,450,null,0.1,{"$f":"WORKDAY(ProjectStartDate,N122)","v":"2025-02-05"}]
[null,null,null,null,null,53,{"$f":"BufferEndDate+AboveBufferChartDays","v":45138},0,10,12,14,1000,null,455,null,0.1,{"$f":"WORKDAY(ProjectStartDate,N123)","v":"2025-02-12"}]
[null,null,null,null,null,53,{"$f":"BufferEndDate+AboveBufferChartDays","v":45138},0,10,12,14,1000,null,460,null,0.1,{"$f":"WORKDAY(ProjectStartDate,N124)","v":"2025-02-19"}]
[null,null,null,null,null,53,{"$f":"BufferEndDate+AboveBufferChartDays","v":45138},0,10,12,14,1000,null,465,null,0.1,{"$f":"WORKDAY(ProjectStartDate,N125)","v":"2025-02-26"}]
[null,null,null,null,null,53,{"$f":"BufferEndDate+AboveBufferChartDays","v":45138},0,10,12,14,1000,null,470,null,0.1,{"$f":"WORKDAY(ProjectStartDate,N126)","v":"2025-03-05"}]
[null,null,null,null,null,53,{"$f":"BufferEndDate+AboveBufferChartDays","v":45138},0,10,12,14,1000,null,475,null,0.1,{"$f":"WORKDAY(ProjectStartDate,N127)","v":"2025-03-12"}]
[null,null,null,null,null,53,{"$f":"BufferEndDate+AboveBufferChartDays","v":45138},0,10,12,14,1000,null,480,null,{"$f":"LeftMin+$P$31","v":0.1},{"$f":"WORKDAY(ProjectStartDate,N128)","v":"2025-03-19"}]
[null,null,null,null,null,53,{"$f":"BufferEndDate+AboveBufferChartDays","v":45138},0,10,12,14,1000,null,{"$f":"N128+XMajor","v":485},null,0.1,{"$f":"WORKDAY(ProjectStartDate,N129)","v":"2025-03-26"}]
[null,null,null,null,null,53,{"$f":"BufferEndDate+AboveBufferChartDays","v":45138},0,10,12,14,1000,null,490,null,0.1,{"$f":"WORKDAY(ProjectStartDate,N130)","v":"2025-04-02"}]
[null,null,null,null,null,53,{"$f":"BufferEndDate+AboveBufferChartDays","v":45138},0,10,12,14,1000,null,495,null,0.1,{"$f":"WORKDAY(ProjectStartDate,N131)","v":"2025-04-09"}]
[null,null,null,null,null,53,{"$f":"BufferEndDate+AboveBufferChartDays","v":45138},0,10,12,{"$f":"VALUE(BufferDays)","v":14},1000,null,500,null,0.1,{"$f":"WORKDAY(ProjectStartDate,N132)","v":"2025-04-16"}]
[null,null,null,null,null,53,{"$f":"BufferEndDate+AboveBufferChartDays","v":45138},0,10,12,14,1000,null,505,null,0.1,{"$f":"WORKDAY(ProjectStartDate,N133)","v":"2025-04-23"}]
[null,null,null,null,null,53,{"$f":"BufferEndDate+AboveBufferChartDays","v":45138},0,10,12,14,1000,null,510,null,0.1,{"$f":"WORKDAY(ProjectStartDate,N134)","v":"2025-04-30"}]
[null,null,null,null,null,53,{"$f":"BufferEndDate+AboveBufferChartDays","v":45138},0,10,{"$f":"J134","v":12},14,{"$f":"L134","v":1000},null,515,null,0.1,{"$f":"WORKDAY(ProjectStartDate,N135)","v":"2025-05-07"}]
[null,null,null,null,null,{"$f":"F135","v":53},{"$f":"BufferEndDate+AboveBufferChartDays","v":45138},0,10,12,14,1000,null,520,null,0.1,{"$f":"WORKDAY(ProjectStartDate,N136)","v":"2025-05-14"}]
[null,null,null,null,null,53,{"$f":"BufferEndDate+AboveBufferChartDays","v":45138},0,10,12,14,1000,null,525,null,0.1,{"$f":"WORKDAY(ProjectStartDate,N137)","v":"2025-05-21"}]
[null,null,null,null,null,53,{"$f":"BufferEndDate+AboveBufferChartDays","v":45138},0,10,12,14,1000,null,530,null,0.1,{"$f":"WORKDAY(ProjectStartDate,N138)","v":"2025-05-28"}]
[null,null,null,null,null,53,{"$f":"BufferEndDate+AboveBufferChartDays","v":45138},0,10,12,14,1000,null,535,null,0.1,{"$f":"WORKDAY(ProjectStartDate,N139)","v":"2025-06-04"}]
[null,null,null,null,null,53,{"$f":"BufferEndDate+AboveBufferChartDays","v":45138},0,10,12,14,1000,null,540,null,0.1,{"$f":"WORKDAY(ProjectStartDate,N140)","v":"2025-06-11"}]
[null,null,null,null,null,53,{"$f":"BufferEndDate+AboveBufferChartDays","v":45138},0,10,12,14,1000,null,545,null,0.1,{"$f":"WORKDAY(ProjectStartDate,N141)","v":"2025-06-18"}]
[null,null,null,null,null,53,{"$f":"BufferEndDate+AboveBufferChartDays","v":45138},0,10,12,14,1000,null,550,null,0.1,{"$f":"WORKDAY(ProjectStartDate,N142)","v":"2025-06-25"}]
[null,null,null,null,null,53,{"$f":"BufferEndDate+AboveBufferChartDays","v":45138},0,10,12,14,1000,null,555,null,0.1,{"$f":"WORKDAY(ProjectStartDate,N143)","v":"2025-07-02"}]
[null,null,null,null,null,53,{"$f":"BufferEndDate+AboveBufferChartDays","v":45138},0,10,12,14,1000,null,560,null,0.1,{"$f":"WORKDAY(ProjectStartDate,N144)","v":"2025-07-09"}]
[null,null,null,null,null,53,{"$f":"BufferEndDate+AboveBufferChartDays","v":45138},0,10,12,14,1000,null,565,null,0.1,{"$f":"WORKDAY(ProjectStartDate,N145)","v":"2025-07-16"}]
[null,null,null,null,null,53,{"$f":"BufferEndDate+AboveBufferChartDays","v":45138},0,10,12,14,1000,null,570,null,0.1,{"$f":"WORKDAY(ProjectStartDate,N146)","v":"2025-07-23"}]
[null,null,null,null,null,53,{"$f":"BufferEndDate+AboveBufferChartDays","v":45138},0,10,12,14,1000,null,575,null,0.1,{"$f":"WORKDAY(ProjectStartDate,N147)","v":"2025-07-30"}]
[null,null,null,null,null,53,{"$f":"BufferEndDate+AboveBufferChartDays","v":45138},0,10,12,14,1000,null,580,null,0.1,{"$f":"WORKDAY(ProjectStartDate,N148)","v":"2025-08-06"}]
[null,null,null,null,null,53,{"$f":"BufferEndDate+AboveBufferChartDays","v":45138},0,10,12,14,1000,null,585,null,0.1,{"$f":"WORKDAY(ProjectStartDate,N149)","v":"2025-08-13"}]
[null,null,null,null,null,53,{"$f":"BufferEndDate+AboveBufferChartDays","v":45138},0,10,12,14,1000,null,590,null,0.1,{"$f":"WORKDAY(ProjectStartDate,N150)","v":"2025-08-20"}]
[null,null,null,null,null,53,{"$f":"BufferEndDate+AboveBufferChartDays","v":45138},0,10,12,14,1000,null,595,null,0.1,{"$f":"WORKDAY(ProjectStartDate,N151)","v":"2025-08-27"}]
[null,null,null,null,null,{"$f":"F151","v":53},{"$f":"BufferEndDate+AboveBufferChartDays","v":45138},0,10,12,14,1000,null,600,null,0.1,{"$f":"WORKDAY(ProjectStartDate,N152)","v":"2025-09-03"}]
[null,null,null,null,null,53,{"$f":"BufferEndDate+AboveBufferChartDays","v":45138},0,10,12,14,1000,null,605,null,0.1,{"$f":"WORKDAY(ProjectStartDate,N153)","v":"2025-09-10"}]
[null,null,null,null,null,53,{"$f":"BufferEndDate+AboveBufferChartDays","v":45138},0,10,12,14,1000,null,610,null,0.1,{"$f":"WORKDAY(ProjectStartDate,N154)","v":"2025-09-17"}]
[null,null,null,null,null,53,{"$f":"BufferEndDate+AboveBufferChartDays","v":45138},0,10,12,14,1000,null,615,null,0.1,{"$f":"WORKDAY(ProjectStartDate,N155)","v":"2025-09-24"}]
[null,null,null,null,null,53,{"$f":"BufferEndDate+AboveBufferChartDays","v":45138},0,10,12,14,1000,null,620,null,0.1,{"$f":"WORKDAY(ProjectStartDate,N156)","v":"2025-10-01"}]
[null,null,null,null,null,53,{"$f":"BufferEndDate+AboveBufferChartDays","v":45138},0,10,12,14,1000,null,625,null,0.1,{"$f":"WORKDAY(ProjectStartDate,N157)","v":"2025-10-08"}]
[null,null,null,null,null,53,{"$f":"BufferEndDate+AboveBufferChartDays","v":45138},0,10,12,14,1000,null,630,null,0.1,{"$f":"WORKDAY(ProjectStartDate,N158)","v":"2025-10-15"}]
[null,null,null,null,null,53,{"$f":"BufferEndDate+AboveBufferChartDays","v":45138},0,10,12,14,1000,null,635,null,0.1,{"$f":"WORKDAY(ProjectStartDate,N159)","v":"2025-10-22"}]
[null,null,null,null,null,53,{"$f":"BufferEndDate+AboveBufferChartDays","v":45138},0,10,12,14,1000,null,640,null,0.1,{"$f":"WORKDAY(ProjectStartDate,N160)","v":"2025-10-29"}]
[null,null,null,null,null,53,{"$f":"BufferEndDate+AboveBufferChartDays","v":45138},0,10,12,14,1000,null,645,null,0.1,{"$f":"WORKDAY(ProjectStartDate,N161)","v":"2025-11-05"}]
[null,null,null,null,null,53,{"$f":"BufferEndDate+AboveBufferChartDays","v":45138},0,10,12,14,1000,null,650,null,0.1,{"$f":"WORKDAY(ProjectStartDate,N162)","v":"2025-11-12"}]
[null,null,null,null,null,53,{"$f":"BufferEndDate+AboveBufferChartDays","v":45138},0,10,12,14,1000,null,655,null,0.1,{"$f":"WORKDAY(ProjectStartDate,N163)","v":"2025-11-19"}]
[null,null,null,null,null,53,{"$f":"BufferEndDate+AboveBufferChartDays","v":45138},0,10,12,14,1000,null,660,null,0.1,{"$f":"WORKDAY(ProjectStartDate,N164)","v":"2025-11-26"}]
[null,null,null,null,null,53,{"$f":"BufferEndDate+AboveBufferChartDays","v":45138},0,10,12,14,1000,null,665,null,0.1,{"$f":"WORKDAY(ProjectStartDate,N165)","v":"2025-12-03"}]
[null,null,null,null,null,53,{"$f":"BufferEndDate+AboveBufferChartDays","v":45138},0,10,12,14,1000,null,670,null,0.1,{"$f":"WORKDAY(ProjectStartDate,N166)","v":"2025-12-10"}]
[null,null,null,null,null,53,{"$f":"BufferEndDate+AboveBufferChartDays","v":45138},0,10,12,14,1000,null,675,null,0.1,{"$f":"WORKDAY(ProjectStartDate,N167)","v":"2025-12-17"}]
[null,null,null,null,null,{"$f":"F167","v":53},{"$f":"BufferEndDate+AboveBufferChartDays","v":45138},0,10,12,14,1000,null,680,null,0.1,{"$f":"WORKDAY(ProjectStartDate,N168)","v":"2025-12-24"}]
[null,null,null,null,null,53,{"$f":"BufferEndDate+AboveBufferChartDays","v":45138},0,10,12,14,1000,null,685,null,0.1,{"$f":"WORKDAY(ProjectStartDate,N169)","v":"2025-12-31"}]
[null,null,null,null,null,53,{"$f":"BufferEndDate+AboveBufferChartDays","v":45138},0,10,12,14,1000,null,690,null,0.1,{"$f":"WORKDAY(ProjectStartDate,N170)","v":"2026-01-07"}]
[null,null,null,null,null,53,{"$f":"BufferEndDate+AboveBufferChartDays","v":45138},0,10,12,14,1000,null,695,null,0.1,{"$f":"WORKDAY(ProjectStartDate,N171)","v":"2026-01-14"}]
[null,null,null,null,null,53,{"$f":"BufferEndDate+AboveBufferChartDays","v":45138},0,10,12,14,1000,null,700,null,0.1,{"$f":"WORKDAY(ProjectStartDate,N172)","v":"2026-01-21"}]
[null,null,null,null,null,53,{"$f":"BufferEndDate+AboveBufferChartDays","v":45138},0,10,12,14,1000,null,705,null,0.1,{"$f":"WORKDAY(ProjectStartDate,N173)","v":"2026-01-28"}]
[null,null,null,null,null,53,{"$f":"BufferEndDate+AboveBufferChartDays","v":45138},0,10,12,14,1000,null,710,null,0.1,{"$f":"WORKDAY(ProjectStartDate,N174)","v":"2026-02-04"}]
[null,null,null,null,null,53,{"$f":"BufferEndDate+AboveBufferChartDays","v":45138},0,10,12,14,1000,null,715,null,0.1,{"$f":"WORKDAY(ProjectStartDate,N175)","v":"2026-02-11"}]
[null,null,null,null,null,53,{"$f":"BufferEndDate+AboveBufferChartDays","v":45138},0,10,12,14,1000,null,720,null,0.1,{"$f":"WORKDAY(ProjectStartDate,N176)","v":"2026-02-18"}]
[null,null,null,null,null,53,{"$f":"BufferEndDate+AboveBufferChartDays","v":45138},0,10,12,14,1000,null,725,null,0.1,{"$f":"WORKDAY(ProjectStartDate,N177)","v":"2026-02-25"}]
[null,null,null,null,null,53,{"$f":"BufferEndDate+AboveBufferChartDays","v":45138},0,10,12,14,1000,null,730,null,0.1,{"$f":"WORKDAY(ProjectStartDate,N178)","v":"2026-03-04"}]
[null,null,null,null,null,53,{"$f":"BufferEndDate+AboveBufferChartDays","v":45138},0,10,12,14,1000,null,735,null,0.1,{"$f":"WORKDAY(ProjectStartDate,N179)","v":"2026-03-11"}]
[null,null,null,null,null,53,{"$f":"BufferEndDate+AboveBufferChartDays","v":45138},0,10,12,14,1000,null,740,null,0.1,{"$f":"WORKDAY(ProjectStartDate,N180)","v":"2026-03-18"}]
[null,null,null,null,null,53,{"$f":"BufferEndDate+AboveBufferChartDays","v":45138},0,10,12,14,1000,null,745,null,0.1,{"$f":"WORKDAY(ProjectStartDate,N181)","v":"2026-03-25"}]
[null,null,null,null,null,53,{"$f":"BufferEndDate+AboveBufferChartDays","v":45138},0,10,12,14,1000,null,750,null,0.1,{"$f":"WORKDAY(ProjectStartDate,N182)","v":"2026-04-01"}]
[null,null,null,null,null,53,{"$f":"BufferEndDate+AboveBufferChartDays","v":45138},0,10,12,14,1000,null,755,null,0.1,{"$f":"WORKDAY(ProjectStartDate,N183)","v":"2026-04-08"}]
[null,null,null,null,null,{"$f":"F183","v":53},{"$f":"BufferEndDate+AboveBufferChartDays","v":45138},0,10,12,14,1000,null,760,null,0.1,{"$f":"WORKDAY(ProjectStartDate,N184)","v":"2026-04-15"}]
[null,null,null,null,null,53,{"$f":"BufferEndDate+AboveBufferChartDays","v":45138},0,10,12,14,1000,null,765,null,0.1,{"$f":"WORKDAY(ProjectStartDate,N185)","v":"2026-04-22"}]
[null,null,null,null,null,53,{"$f":"BufferEndDate+AboveBufferChartDays","v":45138},0,10,12,14,1000,null,770,null,0.1,{"$f":"WORKDAY(ProjectStartDate,N186)","v":"2026-04-29"}]
[null,null,null,null,null,53,{"$f":"BufferEndDate+AboveBufferChartDays","v":45138},0,10,12,14,1000,null,775,null,0.1,{"$f":"WORKDAY(ProjectStartDate,N187)","v":"2026-05-06"}]
[null,null,null,null,null,53,{"$f":"BufferEndDate+AboveBufferChartDays","v":45138},0,10,12,14,1000,null,780,null,0.1,{"$f":"WORKDAY(ProjectStartDate,N188)","v":"2026-05-13"}]
[null,null,null,null,null,53,{"$f":"BufferEndDate+AboveBufferChartDays","v":45138},0,10,12,14,1000,null,785,null,0.1,{"$f":"WORKDAY(ProjectStartDate,N189)","v":"2026-05-20"}]
[null,null,null,null,null,53,{"$f":"BufferEndDate+AboveBufferChartDays","v":45138},0,10,12,14,1000,null,790,null,0.1,{"$f":"WORKDAY(ProjectStartDate,N190)","v":"2026-05-27"}]
[null,null,null,null,null,53,{"$f":"BufferEndDate+AboveBufferChartDays","v":45138},0,10,12,14,1000,null,795,null,0.1,{"$f":"WORKDAY(ProjectStartDate,N191)","v":"2026-06-03"}]
[null,null,null,null,null,53,{"$f":"BufferEndDate+AboveBufferChartDays","v":45138},0,10,12,14,1000,null,800,null,{"$f":"LeftMin+$P$31","v":0.1},{"$f":"WORKDAY(ProjectStartDate,N192)","v":"2026-06-10"}]
[null,null,null,null,null,53,{"$f":"BufferEndDate+AboveBufferChartDays","v":45138},0,10,12,14,1000,null,{"$f":"N192+XMajor","v":805},null,0.1,{"$f":"WORKDAY(ProjectStartDate,N193)","v":"2026-06-17"}]
[null,null,null,null,null,53,{"$f":"BufferEndDate+AboveBufferChartDays","v":45138},0,10,12,14,1000,null,810,null,0.1,{"$f":"WORKDAY(ProjectStartDate,N194)","v":"2026-06-24"}]
[null,null,null,null,null,53,{"$f":"BufferEndDate+AboveBufferChartDays","v":45138},0,10,12,14,1000,null,815,null,0.1,{"$f":"WORKDAY(ProjectStartDate,N195)","v":"2026-07-01"}]
[null,null,null,null,null,53,{"$f":"BufferEndDate+AboveBufferChartDays","v":45138},0,10,12,{"$f":"VALUE(BufferDays)","v":14},1000,null,820,null,0.1,{"$f":"WORKDAY(ProjectStartDate,N196)","v":"2026-07-08"}]
[null,null,null,null,null,53,{"$f":"BufferEndDate+AboveBufferChartDays","v":45138},0,10,12,14,1000,null,825,null,0.1,{"$f":"WORKDAY(ProjectStartDate,N197)","v":"2026-07-15"}]
[null,null,null,null,null,53,{"$f":"BufferEndDate+AboveBufferChartDays","v":45138},0,10,12,14,1000,null,830,null,0.1,{"$f":"WORKDAY(ProjectStartDate,N198)","v":"2026-07-22"}]
[null,null,null,null,null,53,{"$f":"BufferEndDate+AboveBufferChartDays","v":45138},0,10,12,14,1000,null,835,null,0.1,{"$f":"WORKDAY(ProjectStartDate,N199)","v":"2026-07-29"}]
[null,null,null,null,null,{"$f":"F199","v":53},{"$f":"BufferEndDate+AboveBufferChartDays","v":45138},0,10,12,14,1000,null,840,null,0.1,{"$f":"WORKDAY(ProjectStartDate,N200)","v":"2026-08-05"}]
[null,null,null,null,null,53,{"$f":"BufferEndDate+AboveBufferChartDays","v":45138},0,10,12,14,1000,null,845,null,0.1,{"$f":"WORKDAY(ProjectStartDate,N201)","v":"2026-08-12"}]
[null,null,null,null,null,53,{"$f":"BufferEndDate+AboveBufferChartDays","v":45138},0,10,12,14,1000,null,850,null,0.1,{"$f":"WORKDAY(ProjectStartDate,N202)","v":"2026-08-19"}]
[null,null,null,null,null,53,{"$f":"BufferEndDate+AboveBufferChartDays","v":45138},0,10,12,14,1000,null,855,null,0.1,{"$f":"WORKDAY(ProjectStartDate,N203)","v":"2026-08-26"}]
[null,null,null,null,null,53,{"$f":"BufferEndDate+AboveBufferChartDays","v":45138},0,10,12,14,1000,null,860,null,0.1,{"$f":"WORKDAY(ProjectStartDate,N204)","v":"2026-09-02"}]
[null,null,null,null,null,53,{"$f":"BufferEndDate+AboveBufferChartDays","v":45138},0,10,12,14,1000,null,865,null,0.1,{"$f":"WORKDAY(ProjectStartDate,N205)","v":"2026-09-09"}]
[null,null,null,null,null,53,{"$f":"BufferEndDate+AboveBufferChartDays","v":45138},0,10,12,14,1000,null,870,null,0.1,{"$f":"WORKDAY(ProjectStartDate,N206)","v":"2026-09-16"}]
[null,null,null,null,null,53,{"$f":"BufferEndDate+AboveBufferChartDays","v":45138},0,10,12,14,1000,null,875,null,0.1,{"$f":"WORKDAY(ProjectStartDate,N207)","v":"2026-09-23"}]
[null,null,null,null,null,53,{"$f":"BufferEndDate+AboveBufferChartDays","v":45138},0,10,12,14,1000,null,880,null,0.1,{"$f":"WORKDAY(ProjectStartDate,N208)","v":"2026-09-30"}]
[null,null,null,null,null,53,{"$f":"BufferEndDate+AboveBufferChartDays","v":45138},0,10,12,14,1000,null,885,null,0.1,{"$f":"WORKDAY(ProjectStartDate,N209)","v":"2026-10-07"}]
[null,null,null,null,null,53,{"$f":"BufferEndDate+AboveBufferChartDays","v":45138},0,10,12,14,1000,null,890,null,0.1,{"$f":"WORKDAY(ProjectStartDate,N210)","v":"2026-10-14"}]
[null,null,null,null,null,53,{"$f":"BufferEndDate+AboveBufferChartDays","v":45138},0,10,12,14,1000,null,895,null,0.1,{"$f":"WORKDAY(ProjectStartDate,N211)","v":"2026-10-21"}]
[null,null,null,null,null,53,{"$f":"BufferEndDate+AboveBufferChartDays","v":45138},0,10,12,14,1000,null,900,null,0.1,{"$f":"WORKDAY(ProjectStartDate,N212)","v":"2026-10-28"}]
[null,null,null,null,null,53,{"$f":"BufferEndDate+AboveBufferChartDays","v":45138},0,10,12,14,1000,null,905,null,0.1,{"$f":"WORKDAY(ProjectStartDate,N213)","v":"2026-11-04"}]
[null,null,null,null,null,53,{"$f":"BufferEndDate+AboveBufferChartDays","v":45138},0,10,12,14,1000,null,910,null,0.1,{"$f":"WORKDAY(ProjectStartDate,N214)","v":"2026-11-11"}]
[null,null,null,null,null,53,{"$f":"BufferEndDate+AboveBufferChartDays","v":45138},0,10,12,14,1000,null,915,null,0.1,{"$f":"WORKDAY(ProjectStartDate,N215)","v":"2026-11-18"}]
[null,null,null,null,null,{"$f":"F215","v":53},{"$f":"BufferEndDate+AboveBufferChartDays","v":45138},0,10,12,14,1000,null,920,null,0.1,{"$f":"WORKDAY(ProjectStartDate,N216)","v":"2026-11-25"}]
[null,null,null,null,null,53,{"$f":"BufferEndDate+AboveBufferChartDays","v":45138},0,10,12,14,1000,null,925,null,0.1,{"$f":"WORKDAY(ProjectStartDate,N217)","v":"2026-12-02"}]
[null,null,null,null,null,53,{"$f":"BufferEndDate+AboveBufferChartDays","v":45138},0,10,12,14,1000,null,930,null,0.1,{"$f":"WORKDAY(ProjectStartDate,N218)","v":"2026-12-09"}]
[null,null,null,null,null,53,{"$f":"BufferEndDate+AboveBufferChartDays","v":45138},0,10,12,14,1000,null,935,null,0.1,{"$f":"WORKDAY(ProjectStartDate,N219)","v":"2026-12-16"}]
[null,null,null,null,null,53,{"$f":"BufferEndDate+AboveBufferChartDays","v":45138},0,10,12,14,1000,null,940,null,0.1,{"$f":"WORKDAY(ProjectStartDate,N220)","v":"2026-12-23"}]
[null,null,null,null,null,53,{"$f":"BufferEndDate+AboveBufferChartDays","v":45138},0,10,12,14,1000,null,945,null,0.1,{"$f":"WORKDAY(ProjectStartDate,N221)","v":"2026-12-30"}]
[null,null,null,null,null,53,{"$f":"BufferEndDate+AboveBufferChartDays","v":45138},0,10,12,14,1000,null,950,null,0.1,{"$f":"WORKDAY(ProjectStartDate,N222)","v":"2027-01-06"}]
[null,null,null,null,null,53,{"$f":"BufferEndDate+AboveBufferChartDays","v":45138},0,10,12,14,1000,null,955,null,0.1,{"$f":"WORKDAY(ProjectStartDate,N223)","v":"2027-01-13"}]
[null,null,null,null,null,53,{"$f":"BufferEndDate+AboveBufferChartDays","v":45138},0,10,12,14,1000,null,960,null,0.1,{"$f":"WORKDAY(ProjectStartDate,N224)","v":"2027-01-20"}]
[null,null,null,null,null,53,{"$f":"BufferEndDate+AboveBufferChartDays","v":45138},0,10,12,14,1000,null,965,null,0.1,{"$f":"WORKDAY(ProjectStartDate,N225)","v":"2027-01-27"}]
[null,null,null,null,null,53,{"$f":"BufferEndDate+AboveBufferChartDays","v":45138},0,10,12,14,1000,null,970,null,0.1,{"$f":"WORKDAY(ProjectStartDate,N226)","v":"2027-02-03"}]
[null,null,null,null,null,53,{"$f":"BufferEndDate+AboveBufferChartDays","v":45138},0,10,12,14,1000,null,975,null,0.1,{"$f":"WORKDAY(ProjectStartDate,N227)","v":"2027-02-10"}]
[null,null,null,null,null,53,{"$f":"BufferEndDate+AboveBufferChartDays","v":45138},0,10,12,14,1000,null,980,null,0.1,{"$f":"WORKDAY(ProjectStartDate,N228)","v":"2027-02-17"}]
[null,null,null,null,null,53,{"$f":"BufferEndDate+AboveBufferChartDays","v":45138},0,10,12,14,1000,null,985,null,0.1,{"$f":"WORKDAY(ProjectStartDate,N229)","v":"2027-02-24"}]
[null,null,null,null,null,53,{"$f":"BufferEndDate+AboveBufferChartDays","v":45138},0,10,12,14,1000,null,990,null,0.1,{"$f":"WORKDAY(ProjectStartDate,N230)","v":"2027-03-03"}]
[null,null,null,null,null,53,{"$f":"BufferEndDate+AboveBufferChartDays","v":45138},0,10,12,14,1000,null,995,null,0.1,{"$f":"WORKDAY(ProjectStartDate,N231)","v":"2027-03-10"}]
[null,null,null,null,null,{"$f":"F231","v":53},{"$f":"BufferEndDate+AboveBufferChartDays","v":45138},0,10,12,14,1000,null,1000,null,0.1,{"$f":"WORKDAY(ProjectStartDate,N232)","v":"2027-03-17"}]
[null,null,null,null,null,53,{"$f":"BufferEndDate+AboveBufferChartDays","v":45138},0,10,12,14,1000,null,1005,null,0.1,{"$f":"WORKDAY(ProjectStartDate,N233)","v":"2027-03-24"}]
[null,null,null,null,null,53,{"$f":"BufferEndDate+AboveBufferChartDays","v":45138},0,10,12,14,1000,null,1010,null,0.1,{"$f":"WORKDAY(ProjectStartDate,N234)","v":"2027-03-31"}]
[null,null,null,null,null,53,{"$f":"BufferEndDate+AboveBufferChartDays","v":45138},0,10,12,14,1000,null,1015,null,0.1,{"$f":"WORKDAY(ProjectStartDate,N235)","v":"2027-04-07"}]
[null,null,null,null,null,53,{"$f":"BufferEndDate+AboveBufferChartDays","v":45138},0,10,12,14,1000,null,1020,null,0.1,{"$f":"WORKDAY(ProjectStartDate,N236)","v":"2027-04-14"}]
[null,null,null,null,null,53,{"$f":"BufferEndDate+AboveBufferChartDays","v":45138},0,10,12,14,1000,null,1025,null,0.1,{"$f":"WORKDAY(ProjectStartDate,N237)","v":"2027-04-21"}]
[null,null,null,null,null,53,{"$f":"BufferEndDate+AboveBufferChartDays","v":45138},0,10,12,14,1000,null,1030,null,0.1,{"$f":"WORKDAY(ProjectStartDate,N238)","v":"2027-04-28"}]
[null,null,null,null,null,53,{"$f":"BufferEndDate+AboveBufferChartDays","v":45138},0,10,12,14,1000,null,1035,null,0.1,{"$f":"WORKDAY(ProjectStartDate,N239)","v":"2027-05-05"}]
[null,null,null,null,null,53,{"$f":"BufferEndDate+AboveBufferChartDays","v":45138},0,10,12,14,1000,null,1040,null,0.1,{"$f":"WORKDAY(ProjectStartDate,N240)","v":"2027-05-12"}]
[null,null,null,null,null,53,{"$f":"BufferEndDate+AboveBufferChartDays","v":45138},0,10,12,14,1000,null,1045,null,0.1,{"$f":"WORKDAY(ProjectStartDate,N241)","v":"2027-05-19"}]
[null,null,null,null,null,53,{"$f":"BufferEndDate+AboveBufferChartDays","v":45138},0,10,12,14,1000,null,1050,null,0.1,{"$f":"WORKDAY(ProjectStartDate,N242)","v":"2027-05-26"}]
[null,null,null,null,null,53,{"$f":"BufferEndDate+AboveBufferChartDays","v":45138},0,10,12,14,1000,null,1055,null,0.1,{"$f":"WORKDAY(ProjectStartDate,N243)","v":"2027-06-02"}]
[null,null,null,null,null,53,{"$f":"BufferEndDate+AboveBufferChartDays","v":45138},0,10,12,14,1000,null,1060,null,0.1,{"$f":"WORKDAY(ProjectStartDate,N244)","v":"2027-06-09"}]
[null,null,null,null,null,53,{"$f":"BufferEndDate+AboveBufferChartDays","v":45138},0,10,12,14,1000,null,1065,null,0.1,{"$f":"WORKDAY(ProjectStartDate,N245)","v":"2027-06-16"}]
[null,null,null,null,null,53,{"$f":"BufferEndDate+AboveBufferChartDays","v":45138},0,10,12,14,1000,null,1070,null,0.1,{"$f":"WORKDAY(ProjectStartDate,N246)","v":"2027-06-23"}]
[null,null,null,null,null,53,{"$f":"BufferEndDate+AboveBufferChartDays","v":45138},0,10,12,14,1000,null,1075,null,0.1,{"$f":"WORKDAY(ProjectStartDate,N247)","v":"2027-06-30"}]
[null,null,null,null,null,{"$f":"F247","v":53},{"$f":"BufferEndDate+AboveBufferChartDays","v":45138},0,10,12,14,1000,null,1080,null,0.1,{"$f":"WORKDAY(ProjectStartDate,N248)","v":"2027-07-07"}]
[null,null,null,null,null,53,{"$f":"BufferEndDate+AboveBufferChartDays","v":45138},0,10,12,14,1000,null,1085,null,0.1,{"$f":"WORKDAY(ProjectStartDate,N249)","v":"2027-07-14"}]
[null,null,null,null,null,53,{"$f":"BufferEndDate+AboveBufferChartDays","v":45138},0,10,12,14,1000,null,1090,null,0.1,{"$f":"WORKDAY(ProjectStartDate,N250)","v":"2027-07-21"}]
[null,null,null,null,null,53,{"$f":"BufferEndDate+AboveBufferChartDays","v":45138},0,10,12,14,1000,null,1095,null,0.1,{"$f":"WORKDAY(ProjectStartDate,N251)","v":"2027-07-28"}]
[null,null,null,null,null,53,{"$f":"BufferEndDate+AboveBufferChartDays","v":45138},0,10,12,14,1000,null,1100,null,0.1,{"$f":"WORKDAY(ProjectStartDate,N252)","v":"2027-08-04"}]
[null,null,null,null,null,53,{"$f":"BufferEndDate+AboveBufferChartDays","v":45138},0,10,12,14,1000,null,1105,null,0.1,{"$f":"WORKDAY(ProjectStartDate,N253)","v":"2027-08-11"}]
[null,null,null,null,null,53,{"$f":"BufferEndDate+AboveBufferChartDays","v":45138},0,10,12,14,1000,null,1110,null,0.1,{"$f":"WORKDAY(ProjectStartDate,N254)","v":"2027-08-18"}]
[null,null,null,null,null,53,{"$f":"BufferEndDate+AboveBufferChartDays","v":45138},0,10,12,14,1000,null,1115,null,0.1,{"$f":"WORKDAY(ProjectStartDate,N255)","v":"2027-08-25"}]
[null,null,null,null,null,53,{"$f":"BufferEndDate+AboveBufferChartDays","v":45138},0,10,12,14,1000,null,1120,null,{"$f":"LeftMin+$P$31","v":0.1},{"$f":"WORKDAY(ProjectStartDate,N256)","v":"2027-09-01"}]
[null,null,null,null,null,53,{"$f":"BufferEndDate+AboveBufferChartDays","v":45138},0,10,12,14,1000,null,{"$f":"N256+XMajor","v":1125},null,0.1,{"$f":"WORKDAY(ProjectStartDate,N257)","v":"2027-09-08"}]
[null,null,null,null,null,53,{"$f":"BufferEndDate+AboveBufferChartDays","v":45138},0,10,12,14,1000,null,1130,null,0.1,{"$f":"WORKDAY(ProjectStartDate,N258)","v":"2027-09-15"}]
[null,null,null,null,null,53,{"$f":"BufferEndDate+AboveBufferChartDays","v":45138},0,10,12,14,1000,null,1135,null,0.1,{"$f":"WORKDAY(ProjectStartDate,N259)","v":"2027-09-22"}]
[null,null,null,null,null,53,{"$f":"BufferEndDate+AboveBufferChartDays","v":45138},0,10,12,{"$f":"VALUE(BufferDays)","v":14},1000,null,1140,null,0.1,{"$f":"WORKDAY(ProjectStartDate,N260)","v":"2027-09-29"}]
[null,null,null,null,null,53,{"$f":"BufferEndDate+AboveBufferChartDays","v":45138},0,10,12,14,1000,null,1145,null,0.1,{"$f":"WORKDAY(ProjectStartDate,N261)","v":"2027-10-06"}]
[null,null,null,null,null,53,{"$f":"BufferEndDate+AboveBufferChartDays","v":45138},0,10,12,14,1000,null,1150,null,0.1,{"$f":"WORKDAY(ProjectStartDate,N262)","v":"2027-10-13"}]
[null,null,null,null,null,53,{"$f":"BufferEndDate+AboveBufferChartDays","v":45138},0,10,12,14,1000,null,1155,null,0.1,{"$f":"WORKDAY(ProjectStartDate,N263)","v":"2027-10-20"}]
[null,null,null,null,null,{"$f":"F263","v":53},{"$f":"BufferEndDate+AboveBufferChartDays","v":45138},0,10,12,14,1000,null,1160,null,0.1,{"$f":"WORKDAY(ProjectStartDate,N264)","v":"2027-10-27"}]
[null,null,null,null,null,53,{"$f":"BufferEndDate+AboveBufferChartDays","v":45138},0,10,12,14,1000,null,1165,null,0.1,{"$f":"WORKDAY(ProjectStartDate,N265)","v":"2027-11-03"}]
[null,null,null,null,null,53,{"$f":"BufferEndDate+AboveBufferChartDays","v":45138},0,10,12,14,1000,null,1170,null,0.1,{"$f":"WORKDAY(ProjectStartDate,N266)","v":"2027-11-10"}]
[null,null,null,null,null,53,{"$f":"BufferEndDate+AboveBufferChartDays","v":45138},0,10,12,14,1000,null,1175,null,0.1,{"$f":"WORKDAY(ProjectStartDate,N267)","v":"2027-11-17"}]
[null,null,null,null,null,53,{"$f":"BufferEndDate+AboveBufferChartDays","v":45138},0,10,12,14,1000,null,1180,null,0.1,{"$f":"WORKDAY(ProjectStartDate,N268)","v":"2027-11-24"}]
[null,null,null,null,null,53,{"$f":"BufferEndDate+AboveBufferChartDays","v":45138},0,10,12,14,1000,null,1185,null,0.1,{"$f":"WORKDAY(ProjectStartDate,N269)","v":"2027-12-01"}]
[null,null,null,null,null,53,{"$f":"BufferEndDate+AboveBufferChartDays","v":45138},0,10,12,14,1000,null,1190,null,0.1,{"$f":"WORKDAY(ProjectStartDate,N270)","v":"2027-12-08"}]
[null,null,null,null,null,53,{"$f":"BufferEndDate+AboveBufferChartDays","v":45138},0,10,12,14,1000,null,1195,null,0.1,{"$f":"WORKDAY(ProjectStartDate,N271)","v":"2027-12-15"}]
[null,null,null,null,null,53,{"$f":"BufferEndDate+AboveBufferChartDays","v":45138},0,10,12,14,1000,null,1200,null,0.1,{"$f":"WORKDAY(ProjectStartDate,N272)","v":"2027-12-22"}]
[null,null,null,null,null,53,{"$f":"BufferEndDate+AboveBufferChartDays","v":45138},0,10,12,14,1000,null,1205,null,0.1,{"$f":"WORKDAY(ProjectStartDate,N273)","v":"2027-12-29"}]
[null,null,null,null,null,53,{"$f":"BufferEndDate+AboveBufferChartDays","v":45138},0,10,12,14,1000,null,1210,null,0.1,{"$f":"WORKDAY(ProjectStartDate,N274)","v":"2028-01-05"}]
[null,null,null,null,null,53,{"$f":"BufferEndDate+AboveBufferChartDays","v":45138},0,10,12,14,1000,null,1215,null,0.1,{"$f":"WORKDAY(ProjectStartDate,N275)","v":"2028-01-12"}]
[null,null,null,null,null,53,{"$f":"BufferEndDate+AboveBufferChartDays","v":45138},0,10,12,14,1000,null,1220,null,0.1,{"$f":"WORKDAY(ProjectStartDate,N276)","v":"2028-01-19"}]
[null,null,null,null,null,53,{"$f":"BufferEndDate+AboveBufferChartDays","v":45138},0,10,12,14,1000,null,1225,null,0.1,{"$f":"WORKDAY(ProjectStartDate,N277)","v":"2028-01-26"}]
[null,null,null,null,null,53,{"$f":"BufferEndDate+AboveBufferChartDays","v":45138},0,10,12,14,1000,null,1230,null,0.1,{"$f":"WORKDAY(ProjectStartDate,N278)","v":"2028-02-02"}]
[null,null,null,null,null,53,{"$f":"BufferEndDate+AboveBufferChartDays","v":45138},0,10,12,14,1000,null,1235,null,0.1,{"$f":"WORKDAY(ProjectStartDate,N279)","v":"2028-02-09"}]
[null,null,null,null,null,{"$f":"F279","v":53},{"$f":"BufferEndDate+AboveBufferChartDays","v":45138},0,10,12,14,1000,null,1240,null,0.1,{"$f":"WORKDAY(ProjectStartDate,N280)","v":"2028-02-16"}]
[null,null,null,null,null,53,{"$f":"BufferEndDate+AboveBufferChartDays","v":45138},0,10,12,14,1000,null,1245,null,0.1,{"$f":"WORKDAY(ProjectStartDate,N281)","v":"2028-02-23"}]
[null,null,null,null,null,53,{"$f":"BufferEndDate+AboveBufferChartDays","v":45138},0,10,12,14,1000,null,1250,null,0.1,{"$f":"WORKDAY(ProjectStartDate,N282)","v":"2028-03-01"}]
[null,null,null,null,null,53,{"$f":"BufferEndDate+AboveBufferChartDays","v":45138},0,10,12,14,1000,null,1255,null,0.1,{"$f":"WORKDAY(ProjectStartDate,N283)","v":"2028-03-08"}]
[null,null,null,null,null,53,{"$f":"BufferEndDate+AboveBufferChartDays","v":45138},0,10,12,14,1000,null,1260,null,0.1,{"$f":"WORKDAY(ProjectStartDate,N284)","v":"2028-03-15"}]
[null,null,null,null,null,53,{"$f":"BufferEndDate+AboveBufferChartDays","v":45138},0,10,12,14,1000,null,1265,null,0.1,{"$f":"WORKDAY(ProjectStartDate,N285)","v":"2028-03-22"}]
[null,null,null,null,null,53,{"$f":"BufferEndDate+AboveBufferChartDays","v":45138},0,10,12,14,1000,null,1270,null,0.1,{"$f":"WORKDAY(ProjectStartDate,N286)","v":"2028-03-29"}]
[null,null,null,null,null,53,{"$f":"BufferEndDate+AboveBufferChartDays","v":45138},0,10,12,14,1000,null,1275,null,0.1,{"$f":"WORKDAY(ProjectStartDate,N287)","v":"2028-04-05"}]
[null,null,null,null,null,53,{"$f":"BufferEndDate+AboveBufferChartDays","v":45138},0,10,12,14,1000,null,1280,null,0.1,{"$f":"WORKDAY(ProjectStartDate,N288)","v":"2028-04-12"}]
[null,null,null,null,null,53,{"$f":"BufferEndDate+AboveBufferChartDays","v":45138},0,10,12,14,1000,null,1285,null,0.1,{"$f":"WORKDAY(ProjectStartDate,N289)","v":"2028-04-19"}]
[null,null,null,null,null,53,{"$f":"BufferEndDate+AboveBufferChartDays","v":45138},0,10,12,14,1000,null,1290,null,0.1,{"$f":"WORKDAY(ProjectStartDate,N290)","v":"2028-04-26"}]
[null,null,null,null,null,53,{"$f":"BufferEndDate+AboveBufferChartDays","v":45138},0,10,12,14,1000,null,1295,null,0.1,{"$f":"WORKDAY(ProjectStartDate,N291)","v":"2028-05-03"}]
[null,null,null,null,null,53,{"$f":"BufferEndDate+AboveBufferChartDays","v":45138},0,10,12,14,1000,null,1300,null,0.1,{"$f":"WORKDAY(ProjectStartDate,N292)","v":"2028-05-10"}]
[null,null,null,null,null,53,{"$f":"BufferEndDate+AboveBufferChartDays","v":45138},0,10,12,14,1000,null,1305,null,0.1,{"$f":"WORKDAY(ProjectStartDate,N293)","v":"2028-05-17"}]
[null,null,null,null,null,53,{"$f":"BufferEndDate+AboveBufferChartDays","v":45138},0,10,12,14,1000,null,1310,null,0.1,{"$f":"WORKDAY(ProjectStartDate,N294)","v":"2028-05-24"}]
[null,null,null,null,null,53,{"$f":"BufferEndDate+AboveBufferChartDays","v":45138},0,10,12,14,1000,null,1315,null,0.1,{"$f":"WORKDAY(ProjectStartDate,N295)","v":"2028-05-31"}]
[null,null,null,null,null,{"$f":"F295","v":53},{"$f":"BufferEndDate+AboveBufferChartDays","v":45138},0,10,12,14,1000,null,1320,null,0.1,{"$f":"WORKDAY(ProjectStartDate,N296)","v":"2028-06-07"}]
[null,null,null,null,null,53,{"$f":"BufferEndDate+AboveBufferChartDays","v":45138},0,10,12,14,1000,null,1325,null,0.1,{"$f":"WORKDAY(ProjectStartDate,N297)","v":"2028-06-14"}]
[null,null,null,null,null,53,{"$f":"BufferEndDate+AboveBufferChartDays","v":45138},0,10,12,14,1000,null,1330,null,0.1,{"$f":"WORKDAY(ProjectStartDate,N298)","v":"2028-06-21"}]
[null,null,null,null,null,53,{"$f":"BufferEndDate+AboveBufferChartDays","v":45138},0,10,12,14,1000,null,1335,null,0.1,{"$f":"WORKDAY(ProjectStartDate,N299)","v":"2028-06-28"}]
[null,null,null,null,null,53,{"$f":"BufferEndDate+AboveBufferChartDays","v":45138},0,10,12,14,1000,null,1340,null,0.1,{"$f":"WORKDAY(ProjectStartDate,N300)","v":"2028-07-05"}]
[null,null,null,null,null,53,{"$f":"BufferEndDate+AboveBufferChartDays","v":45138},0,10,12,14,1000,null,1345,null,0.1,{"$f":"WORKDAY(ProjectStartDate,N301)","v":"2028-07-12"}]
[null,null,null,null,null,53,{"$f":"BufferEndDate+AboveBufferChartDays","v":45138},0,10,12,14,1000,null,1350,null,0.1,{"$f":"WORKDAY(ProjectStartDate,N302)","v":"2028-07-19"}]
[null,null,null,null,null,53,{"$f":"BufferEndDate+AboveBufferChartDays","v":45138},0,10,12,14,1000,null,1355,null,0.1,{"$f":"WORKDAY(ProjectStartDate,N303)","v":"2028-07-26"}]
[null,null,null,null,null,53,{"$f":"BufferEndDate+AboveBufferChartDays","v":45138},0,10,12,14,1000,null,1360,null,0.1,{"$f":"WORKDAY(ProjectStartDate,N304)","v":"2028-08-02"}]
[null,null,null,null,null,53,{"$f":"BufferEndDate+AboveBufferChartDays","v":45138},0,10,12,14,1000,null,1365,null,0.1,{"$f":"WORKDAY(ProjectStartDate,N305)","v":"2028-08-09"}]
[null,null,null,null,null,53,{"$f":"BufferEndDate+AboveBufferChartDays","v":45138},0,10,12,14,1000,null,1370,null,0.1,{"$f":"WORKDAY(ProjectStartDate,N306)","v":"2028-08-16"}]
[null,null,null,null,null,53,{"$f":"BufferEndDate+AboveBufferChartDays","v":45138},0,10,12,14,1000,null,1375,null,0.1,{"$f":"WORKDAY(ProjectStartDate,N307)","v":"2028-08-23"}]
[null,null,null,null,null,53,{"$f":"BufferEndDate+AboveBufferChartDays","v":45138},0,10,12,14,1000,null,1380,null,0.1,{"$f":"WORKDAY(ProjectStartDate,N308)","v":"2028-08-30"}]
[null,null,null,null,null,53,{"$f":"BufferEndDate+AboveBufferChartDays","v":45138},0,10,12,14,1000,null,1385,null,0.1,{"$f":"WORKDAY(ProjectStartDate,N309)","v":"2028-09-06"}]
[null,null,null,null,null,53,{"$f":"BufferEndDate+AboveBufferChartDays","v":45138},0,10,12,14,1000,null,1390,null,0.1,{"$f":"WORKDAY(ProjectStartDate,N310)","v":"2028-09-13"}]
[null,null,null,null,null,53,{"$f":"BufferEndDate+AboveBufferChartDays","v":45138},0,10,12,14,1000,null,1395,null,0.1,{"$f":"WORKDAY(ProjectStartDate,N311)","v":"2028-09-20"}]
[null,null,null,null,null,{"$f":"F311","v":53},{"$f":"BufferEndDate+AboveBufferChartDays","v":45138},0,10,12,14,1000,null,1400,null,0.1,{"$f":"WORKDAY(ProjectStartDate,N312)","v":"2028-09-27"}]
[null,null,null,null,null,53,{"$f":"BufferEndDate+AboveBufferChartDays","v":45138},0,10,12,14,1000,null,1405,null,0.1,{"$f":"WORKDAY(ProjectStartDate,N313)","v":"2028-10-04"}]
[null,null,null,null,null,53,{"$f":"BufferEndDate+AboveBufferChartDays","v":45138},0,10,12,14,1000,null,1410,null,0.1,{"$f":"WORKDAY(ProjectStartDate,N314)","v":"2028-10-11"}]
[null,null,null,null,null,53,{"$f":"BufferEndDate+AboveBufferChartDays","v":45138},0,10,12,14,1000,null,1415,null,0.1,{"$f":"WORKDAY(ProjectStartDate,N315)","v":"2028-10-18"}]
[null,null,null,null,null,53,{"$f":"BufferEndDate+AboveBufferChartDays","v":45138},0,10,12,14,1000,null,1420,null,0.1,{"$f":"WORKDAY(ProjectStartDate,N316)","v":"2028-10-25"}]
[null,null,null,null,null,53,{"$f":"BufferEndDate+AboveBufferChartDays","v":45138},0,10,12,14,1000,null,1425,null,0.1,{"$f":"WORKDAY(ProjectStartDate,N317)","v":"2028-11-01"}]
[null,null,null,null,null,53,{"$f":"BufferEndDate+AboveBufferChartDays","v":45138},0,10,12,14,1000,null,1430,null,0.1,{"$f":"WORKDAY(ProjectStartDate,N318)","v":"2028-11-08"}]
[null,null,null,null,null,53,{"$f":"BufferEndDate+AboveBufferChartDays","v":45138},0,10,12,14,1000,null,1435,null,0.1,{"$f":"WORKDAY(ProjectStartDate,N319)","v":"2028-11-15"}]
[null,null,null,null,null,53,{"$f":"BufferEndDate+AboveBufferChartDays","v":45138},0,10,12,14,1000,null,1440,null,{"$f":"LeftMin+$P$31","v":0.1},{"$f":"WORKDAY(ProjectStartDate,N320)","v":"2028-11-22"}]
[null,null,null,null,null,53,{"$f":"BufferEndDate+AboveBufferChartDays","v":45138},0,10,12,14,1000,null,{"$f":"N320+XMajor","v":1445},null,0.1,{"$f":"WORKDAY(ProjectStartDate,N321)","v":"2028-11-29"}]
[null,null,null,null,null,53,{"$f":"BufferEndDate+AboveBufferChartDays","v":45138},0,10,12,14,1000,null,1450,null,0.1,{"$f":"WORKDAY(ProjectStartDate,N322)","v":"2028-12-06"}]
[null,null,null,null,null,53,{"$f":"BufferEndDate+AboveBufferChartDays","v":45138},0,10,12,14,1000,null,1455,null,0.1,{"$f":"WORKDAY(ProjectStartDate,N323)","v":"2028-12-13"}]
[null,null,null,null,null,53,{"$f":"BufferEndDate+AboveBufferChartDays","v":45138},0,10,12,{"$f":"VALUE(BufferDays)","v":14},1000,null,1460,null,0.1,{"$f":"WORKDAY(ProjectStartDate,N324)","v":"2028-12-20"}]
[null,null,null,null,null,53,{"$f":"BufferEndDate+AboveBufferChartDays","v":45138},0,10,12,14,1000,null,1465,null,0.1,{"$f":"WORKDAY(ProjectStartDate,N325)","v":"2028-12-27"}]
[null,null,null,null,null,53,{"$f":"BufferEndDate+AboveBufferChartDays","v":45138},0,10,12,14,1000,null,1470,null,0.1,{"$f":"WORKDAY(ProjectStartDate,N326)","v":"2029-01-03"}]
[null,null,null,null,null,53,{"$f":"BufferEndDate+AboveBufferChartDays","v":45138},0,10,12,14,1000,null,1475,null,0.1,{"$f":"WORKDAY(ProjectStartDate,N327)","v":"2029-01-10"}]
[null,null,null,null,null,{"$f":"F327","v":53},{"$f":"BufferEndDate+AboveBufferChartDays","v":45138},0,10,12,14,1000,null,1480,null,0.1,{"$f":"WORKDAY(ProjectStartDate,N328)","v":"2029-01-17"}]
[null,null,null,null,null,53,{"$f":"BufferEndDate+AboveBufferChartDays","v":45138},0,10,12,14,1000,null,1485,null,0.1,{"$f":"WORKDAY(ProjectStartDate,N329)","v":"2029-01-24"}]
[null,null,null,null,null,53,{"$f":"BufferEndDate+AboveBufferChartDays","v":45138},0,10,12,14,1000,null,1490,null,0.1,{"$f":"WORKDAY(ProjectStartDate,N330)","v":"2029-01-31"}]
[null,null,null,null,null,53,{"$f":"BufferEndDate+AboveBufferChartDays","v":45138},0,10,12,14,1000,null,1495,null,0.1,{"$f":"WORKDAY(ProjectStartDate,N331)","v":"2029-02-07"}]
[null,null,null,null,null,53,{"$f":"BufferEndDate+AboveBufferChartDays","v":45138},0,10,12,14,1000,null,1500,null,0.1,{"$f":"WORKDAY(ProjectStartDate,N332)","v":"2029-02-14"}]
[null,null,null,null,null,53,{"$f":"BufferEndDate+AboveBufferChartDays","v":45138},0,10,12,14,1000,null,1505,null,0.1,{"$f":"WORKDAY(ProjectStartDate,N333)","v":"2029-02-21"}]
[null,null,null,null,null,53,{"$f":"BufferEndDate+AboveBufferChartDays","v":45138},0,10,12,14,1000,null,1510,null,0.1,{"$f":"WORKDAY(ProjectStartDate,N334)","v":"2029-02-28"}]
[null,null,null,null,null,53,{"$f":"BufferEndDate+AboveBufferChartDays","v":45138},0,10,12,14,1000,null,1515,null,0.1,{"$f":"WORKDAY(ProjectStartDate,N335)","v":"2029-03-07"}]
[null,null,null,null,null,53,{"$f":"BufferEndDate+AboveBufferChartDays","v":45138},0,10,12,14,1000,null,1520,null,0.1,{"$f":"WORKDAY(ProjectStartDate,N336)","v":"2029-03-14"}]
[null,null,null,null,null,53,{"$f":"BufferEndDate+AboveBufferChartDays","v":45138},0,10,12,14,1000,null,1525,null,0.1,{"$f":"WORKDAY(ProjectStartDate,N337)","v":"2029-03-21"}]
[null,null,null,null,null,53,{"$f":"BufferEndDate+AboveBufferChartDays","v":45138},0,10,12,14,1000,null,1530,null,0.1,{"$f":"WORKDAY(ProjectStartDate,N338)","v":"2029-03-28"}]
[null,null,null,null,null,53,{"$f":"BufferEndDate+AboveBufferChartDays","v":45138},0,10,12,14,1000,null,1535,null,0.1,{"$f":"WORKDAY(ProjectStartDate,N339)","v":"2029-04-04"}]
[null,null,null,null,null,53,{"$f":"BufferEndDate+AboveBufferChartDays","v":45138},0,10,12,14,1000,null,1540,null,0.1,{"$f":"WORKDAY(ProjectStartDate,N340)","v":"2029-04-11"}]
[null,null,null,null,null,53,{"$f":"BufferEndDate+AboveBufferChartDays","v":45138},0,10,12,14,1000,null,1545,null,0.1,{"$f":"WORKDAY(ProjectStartDate,N341)","v":"2029-04-18"}]
[null,null,null,null,null,53,{"$f":"BufferEndDate+AboveBufferChartDays","v":45138},0,10,12,14,1000,null,1550,null,0.1,{"$f":"WORKDAY(ProjectStartDate,N342)","v":"2029-04-25"}]
[null,null,null,null,null,53,{"$f":"BufferEndDate+AboveBufferChartDays","v":45138},0,10,12,14,1000,null,1555,null,0.1,{"$f":"WORKDAY(ProjectStartDate,N343)","v":"2029-05-02"}]
[null,null,null,null,null,{"$f":"F343","v":53},{"$f":"BufferEndDate+AboveBufferChartDays","v":45138},0,10,12,14,1000,null,1560,null,0.1,{"$f":"WORKDAY(ProjectStartDate,N344)","v":"2029-05-09"}]
[null,null,null,null,null,53,{"$f":"BufferEndDate+AboveBufferChartDays","v":45138},0,10,12,14,1000,null,1565,null,0.1,{"$f":"WORKDAY(ProjectStartDate,N345)","v":"2029-05-16"}]
[null,null,null,null,null,53,{"$f":"BufferEndDate+AboveBufferChartDays","v":45138},0,10,12,14,1000,null,1570,null,0.1,{"$f":"WORKDAY(ProjectStartDate,N346)","v":"2029-05-23"}]
[null,null,null,null,null,53,{"$f":"BufferEndDate+AboveBufferChartDays","v":45138},0,10,12,14,1000,null,1575,null,0.1,{"$f":"WORKDAY(ProjectStartDate,N347)","v":"2029-05-30"}]
[null,null,null,null,null,53,{"$f":"BufferEndDate+AboveBufferChartDays","v":45138},0,10,12,14,1000,null,1580,null,0.1,{"$f":"WORKDAY(ProjectStartDate,N348)","v":"2029-06-06"}]
[null,null,null,null,null,53,{"$f":"BufferEndDate+AboveBufferChartDays","v":45138},0,10,12,14,1000,null,1585,null,0.1,{"$f":"WORKDAY(ProjectStartDate,N349)","v":"2029-06-13"}]
[null,null,null,null,null,53,{"$f":"BufferEndDate+AboveBufferChartDays","v":45138},0,10,12,14,1000,null,1590,null,0.1,{"$f":"WORKDAY(ProjectStartDate,N350)","v":"2029-06-20"}]
[null,null,null,null,null,53,{"$f":"BufferEndDate+AboveBufferChartDays","v":45138},0,10,12,14,1000,null,1595,null,0.1,{"$f":"WORKDAY(ProjectStartDate,N351)","v":"2029-06-27"}]
[null,null,null,null,null,53,{"$f":"BufferEndDate+AboveBufferChartDays","v":45138},0,10,12,14,1000,null,1600,null,0.1,{"$f":"WORKDAY(ProjectStartDate,N352)","v":"2029-07-04"}]
[null,null,null,null,null,53,{"$f":"BufferEndDate+AboveBufferChartDays","v":45138},0,10,12,14,1000,null,1605,null,0.1,{"$f":"WORKDAY(ProjectStartDate,N353)","v":"2029-07-11"}]
[null,null,null,null,null,53,{"$f":"BufferEndDate+AboveBufferChartDays","v":45138},0,10,12,14,1000,null,1610,null,0.1,{"$f":"WORKDAY(ProjectStartDate,N354)","v":"2029-07-18"}]
[null,null,null,null,null,53,{"$f":"BufferEndDate+AboveBufferChartDays","v":45138},0,10,12,14,1000,null,1615,null,0.1,{"$f":"WORKDAY(ProjectStartDate,N355)","v":"2029-07-25"}]
[null,null,null,null,null,53,{"$f":"BufferEndDate+AboveBufferChartDays","v":45138},0,10,12,14,1000,null,1620,null,0.1,{"$f":"WORKDAY(ProjectStartDate,N356)","v":"2029-08-01"}]
[null,null,null,null,null,53,{"$f":"BufferEndDate+AboveBufferChartDays","v":45138},0,10,12,14,1000,null,1625,null,0.1,{"$f":"WORKDAY(ProjectStartDate,N357)","v":"2029-08-08"}]
[null,null,null,null,null,53,{"$f":"BufferEndDate+AboveBufferChartDays","v":45138},0,10,12,14,1000,null,1630,null,0.1,{"$f":"WORKDAY(ProjectStartDate,N358)","v":"2029-08-15"}]
[null,null,null,null,null,53,{"$f":"BufferEndDate+AboveBufferChartDays","v":45138},0,10,12,14,1000,null,1635,null,0.1,{"$f":"WORKDAY(ProjectStartDate,N359)","v":"2029-08-22"}]
[null,null,null,null,null,{"$f":"F359","v":53},{"$f":"BufferEndDate+AboveBufferChartDays","v":45138},0,10,12,14,1000,null,1640,null,0.1,{"$f":"WORKDAY(ProjectStartDate,N360)","v":"2029-08-29"}]
[null,null,null,null,null,53,{"$f":"BufferEndDate+AboveBufferChartDays","v":45138},0,10,12,14,1000,null,1645,null,0.1,{"$f":"WORKDAY(ProjectStartDate,N361)","v":"2029-09-05"}]
[null,null,null,null,null,53,{"$f":"BufferEndDate+AboveBufferChartDays","v":45138},0,10,12,14,1000,null,1650,null,0.1,{"$f":"WORKDAY(ProjectStartDate,N362)","v":"2029-09-12"}]
[null,null,null,null,null,53,{"$f":"BufferEndDate+AboveBufferChartDays","v":45138},0,10,12,14,1000,null,1655,null,0.1,{"$f":"WORKDAY(ProjectStartDate,N363)","v":"2029-09-19"}]
[null,null,null,null,null,53,{"$f":"BufferEndDate+AboveBufferChartDays","v":45138},0,10,12,14,1000,null,1660,null,0.1,{"$f":"WORKDAY(ProjectStartDate,N364)","v":"2029-09-26"}]
[null,null,null,null,null,53,{"$f":"BufferEndDate+AboveBufferChartDays","v":45138},0,10,12,14,1000,null,1665,null,0.1,{"$f":"WORKDAY(ProjectStartDate,N365)","v":"2029-10-03"}]
[null,null,null,null,null,53,{"$f":"BufferEndDate+AboveBufferChartDays","v":45138},0,10,12,14,1000,null,1670,null,0.1,{"$f":"WORKDAY(ProjectStartDate,N366)","v":"2029-10-10"}]
[null,null,null,null,null,53,{"$f":"BufferEndDate+AboveBufferChartDays","v":45138},0,10,12,14,1000,null,1675,null,0.1,{"$f":"WORKDAY(ProjectStartDate,N367)","v":"2029-10-17"}]
[null,null,null,null,null,53,{"$f":"BufferEndDate+AboveBufferChartDays","v":45138},0,10,12,14,1000,null,1680,null,0.1,{"$f":"WORKDAY(ProjectStartDate,N368)","v":"2029-10-24"}]
[null,null,null,null,null,53,{"$f":"BufferEndDate+AboveBufferChartDays","v":45138},0,10,12,14,1000,null,1685,null,0.1,{"$f":"WORKDAY(ProjectStartDate,N369)","v":"2029-10-31"}]
[null,null,null,null,null,53,{"$f":"BufferEndDate+AboveBufferChartDays","v":45138},0,10,12,14,1000,null,1690,null,0.1,{"$f":"WORKDAY(ProjectStartDate,N370)","v":"2029-11-07"}]
[null,null,null,null,null,53,{"$f":"BufferEndDate+AboveBufferChartDays","v":45138},0,10,12,14,1000,null,1695,null,0.1,{"$f":"WORKDAY(ProjectStartDate,N371)","v":"2029-11-14"}]
[null,null,null,null,null,53,{"$f":"BufferEndDate+AboveBufferChartDays","v":45138},0,10,12,14,1000,null,1700,null,0.1,{"$f":"WORKDAY(ProjectStartDate,N372)","v":"2029-11-21"}]
[null,null,null,null,null,53,{"$f":"BufferEndDate+AboveBufferChartDays","v":45138},0,10,12,14,1000,null,1705,null,0.1,{"$f":"WORKDAY(ProjectStartDate,N373)","v":"2029-11-28"}]
[null,null,null,null,null,53,{"$f":"BufferEndDate+AboveBufferChartDays","v":45138},0,10,12,14,1000,null,1710,null,0.1,{"$f":"WORKDAY(ProjectStartDate,N374)","v":"2029-12-05"}]
[null,null,null,null,null,53,{"$f":"BufferEndDate+AboveBufferChartDays","v":45138},0,10,12,14,1000,null,1715,null,0.1,{"$f":"WORKDAY(ProjectStartDate,N375)","v":"2029-12-12"}]
[null,null,null,null,null,{"$f":"F375","v":53},{"$f":"BufferEndDate+AboveBufferChartDays","v":45138},0,10,12,14,1000,null,1720,null,0.1,{"$f":"WORKDAY(ProjectStartDate,N376)","v":"2029-12-19"}]
[null,null,null,null,null,53,{"$f":"BufferEndDate+AboveBufferChartDays","v":45138},0,10,12,14,1000,null,1725,null,0.1,{"$f":"WORKDAY(ProjectStartDate,N377)","v":"2029-12-26"}]
[null,null,null,null,null,53,{"$f":"BufferEndDate+AboveBufferChartDays","v":45138},0,10,12,14,1000,null,1730,null,0.1,{"$f":"WORKDAY(ProjectStartDate,N378)","v":"2030-01-02"}]
[null,null,null,null,null,53,{"$f":"BufferEndDate+AboveBufferChartDays","v":45138},0,10,12,14,1000,null,1735,null,0.1,{"$f":"WORKDAY(ProjectStartDate,N379)","v":"2030-01-09"}]
[null,null,null,null,null,53,{"$f":"BufferEndDate+AboveBufferChartDays","v":45138},0,10,12,14,1000,null,1740,null,0.1,{"$f":"WORKDAY(ProjectStartDate,N380)","v":"2030-01-16"}]
[null,null,null,null,null,53,{"$f":"BufferEndDate+AboveBufferChartDays","v":45138},0,10,12,14,1000,null,1745,null,0.1,{"$f":"WORKDAY(ProjectStartDate,N381)","v":"2030-01-23"}]
[null,null,null,null,null,53,{"$f":"BufferEndDate+AboveBufferChartDays","v":45138},0,10,12,14,1000,null,1750,null,0.1,{"$f":"WORKDAY(ProjectStartDate,N382)","v":"2030-01-30"}]
[null,null,null,null,null,53,{"$f":"BufferEndDate+AboveBufferChartDays","v":45138},0,10,12,14,1000,null,1755,null,0.1,{"$f":"WORKDAY(ProjectStartDate,N383)","v":"2030-02-06"}]
[null,null,null,null,null,53,{"$f":"BufferEndDate+AboveBufferChartDays","v":45138},0,10,12,14,1000,null,1760,null,{"$f":"LeftMin+$P$31","v":0.1},{"$f":"WORKDAY(ProjectStartDate,N384)","v":"2030-02-13"}]
[null,null,null,null,null,53,{"$f":"BufferEndDate+AboveBufferChartDays","v":45138},0,10,12,14,1000,null,{"$f":"N384+XMajor","v":1765},null,0.1,{"$f":"WORKDAY(ProjectStartDate,N385)","v":"2030-02-20"}]
[null,null,null,null,null,53,{"$f":"BufferEndDate+AboveBufferChartDays","v":45138},0,10,12,14,1000,null,1770,null,0.1,{"$f":"WORKDAY(ProjectStartDate,N386)","v":"2030-02-27"}]
[null,null,null,null,null,53,{"$f":"BufferEndDate+AboveBufferChartDays","v":45138},0,10,12,14,1000,null,1775,null,0.1,{"$f":"WORKDAY(ProjectStartDate,N387)","v":"2030-03-06"}]
[null,null,null,null,null,53,{"$f":"BufferEndDate+AboveBufferChartDays","v":45138},0,10,12,{"$f":"VALUE(BufferDays)","v":14},1000,null,1780,null,0.1,{"$f":"WORKDAY(ProjectStartDate,N388)","v":"2030-03-13"}]
[null,null,null,null,null,53,{"$f":"BufferEndDate+AboveBufferChartDays","v":45138},0,10,12,14,1000,null,1785,null,0.1,{"$f":"WORKDAY(ProjectStartDate,N389)","v":"2030-03-20"}]
[null,null,null,null,null,53,{"$f":"BufferEndDate+AboveBufferChartDays","v":45138},0,10,12,14,1000,null,1790,null,0.1,{"$f":"WORKDAY(ProjectStartDate,N390)","v":"2030-03-27"}]
[null,null,null,null,null,53,{"$f":"BufferEndDate+AboveBufferChartDays","v":45138},0,10,12,14,1000,null,1795,null,0.1,{"$f":"WORKDAY(ProjectStartDate,N391)","v":"2030-04-03"}]
[null,null,null,null,null,{"$f":"F391","v":53},{"$f":"BufferEndDate+AboveBufferChartDays","v":45138},0,10,12,14,1000,null,1800,null,0.1,{"$f":"WORKDAY(ProjectStartDate,N392)","v":"2030-04-10"}]
[null,null,null,null,null,53,{"$f":"BufferEndDate+AboveBufferChartDays","v":45138},0,10,12,14,1000,null,1805,null,0.1,{"$f":"WORKDAY(ProjectStartDate,N393)","v":"2030-04-17"}]
[null,null,null,null,null,53,{"$f":"BufferEndDate+AboveBufferChartDays","v":45138},0,10,12,14,1000,null,1810,null,0.1,{"$f":"WORKDAY(ProjectStartDate,N394)","v":"2030-04-24"}]
[null,null,null,null,null,53,{"$f":"BufferEndDate+AboveBufferChartDays","v":45138},0,10,12,14,1000,null,1815,null,0.1,{"$f":"WORKDAY(ProjectStartDate,N395)","v":"2030-05-01"}]
[null,null,null,null,null,53,{"$f":"BufferEndDate+AboveBufferChartDays","v":45138},0,10,12,14,1000,null,1820,null,0.1,{"$f":"WORKDAY(ProjectStartDate,N396)","v":"2030-05-08"}]
[null,null,null,null,null,53,{"$f":"BufferEndDate+AboveBufferChartDays","v":45138},0,10,12,14,1000,null,1825,null,0.1,{"$f":"WORKDAY(ProjectStartDate,N397)","v":"2030-05-15"}]
[null,null,null,null,null,53,{"$f":"BufferEndDate+AboveBufferChartDays","v":45138},0,10,12,14,1000,null,1830,null,0.1,{"$f":"WORKDAY(ProjectStartDate,N398)","v":"2030-05-22"}]
[null,null,null,null,null,53,{"$f":"BufferEndDate+AboveBufferChartDays","v":45138},0,10,12,14,1000,null,1835,null,0.1,{"$f":"WORKDAY(ProjectStartDate,N399)","v":"2030-05-29"}]
[null,null,null,null,null,53,{"$f":"BufferEndDate+AboveBufferChartDays","v":45138},0,10,12,14,1000,null,1840,null,0.1,{"$f":"WORKDAY(ProjectStartDate,N400)","v":"2030-06-05"}]
[null,null,null,null,null,53,{"$f":"BufferEndDate+AboveBufferChartDays","v":45138},0,10,12,14,1000,null,1845,null,0.1,{"$f":"WORKDAY(ProjectStartDate,N401)","v":"2030-06-12"}]
[null,null,null,null,null,53,{"$f":"BufferEndDate+AboveBufferChartDays","v":45138},0,10,12,14,1000,null,1850,null,0.1,{"$f":"WORKDAY(ProjectStartDate,N402)","v":"2030-06-19"}]
[null,null,null,null,null,53,{"$f":"BufferEndDate+AboveBufferChartDays","v":45138},0,10,12,14,1000,null,1855,null,0.1,{"$f":"WORKDAY(ProjectStartDate,N403)","v":"2030-06-26"}]
[null,null,null,null,null,53,{"$f":"BufferEndDate+AboveBufferChartDays","v":45138},0,10,12,14,1000,null,1860,null,0.1,{"$f":"WORKDAY(ProjectStartDate,N404)","v":"2030-07-03"}]
[null,null,null,null,null,53,{"$f":"BufferEndDate+AboveBufferChartDays","v":45138},0,10,12,14,1000,null,1865,null,0.1,{"$f":"WORKDAY(ProjectStartDate,N405)","v":"2030-07-10"}]
[null,null,null,null,null,53,{"$f":"BufferEndDate+AboveBufferChartDays","v":45138},0,10,12,14,1000,null,1870,null,0.1,{"$f":"WORKDAY(ProjectStartDate,N406)","v":"2030-07-17"}]
[null,null,null,null,null,53,{"$f":"BufferEndDate+AboveBufferChartDays","v":45138},0,10,12,14,1000,null,1875,null,0.1,{"$f":"WORKDAY(ProjectStartDate,N407)","v":"2030-07-24"}]
[null,null,null,null,null,{"$f":"F407","v":53},{"$f":"BufferEndDate+AboveBufferChartDays","v":45138},0,10,12,14,1000,null,1880,null,0.1,{"$f":"WORKDAY(ProjectStartDate,N408)","v":"2030-07-31"}]
[null,null,null,null,null,53,{"$f":"BufferEndDate+AboveBufferChartDays","v":45138},0,10,12,14,1000,null,1885,null,0.1,{"$f":"WORKDAY(ProjectStartDate,N409)","v":"2030-08-07"}]
[null,null,null,null,null,53,{"$f":"BufferEndDate+AboveBufferChartDays","v":45138},0,10,12,14,1000,null,1890,null,0.1,{"$f":"WORKDAY(ProjectStartDate,N410)","v":"2030-08-14"}]
[null,null,null,null,null,53,{"$f":"BufferEndDate+AboveBufferChartDays","v":45138},0,10,12,14,1000,null,1895,null,0.1,{"$f":"WORKDAY(ProjectStartDate,N411)","v":"2030-08-21"}]
[null,null,null,null,null,53,{"$f":"BufferEndDate+AboveBufferChartDays","v":45138},0,10,12,14,1000,null,1900,null,0.1,{"$f":"WORKDAY(ProjectStartDate,N412)","v":"2030-08-28"}]
[null,null,null,null,null,53,{"$f":"BufferEndDate+AboveBufferChartDays","v":45138},0,10,12,14,1000,null,1905,null,0.1,{"$f":"WORKDAY(ProjectStartDate,N413)","v":"2030-09-04"}]
[null,null,null,null,null,53,{"$f":"BufferEndDate+AboveBufferChartDays","v":45138},0,10,12,14,1000,null,1910,null,0.1,{"$f":"WORKDAY(ProjectStartDate,N414)","v":"2030-09-11"}]
[null,null,null,null,null,53,{"$f":"BufferEndDate+AboveBufferChartDays","v":45138},0,10,12,14,1000,null,1915,null,0.1,{"$f":"WORKDAY(ProjectStartDate,N415)","v":"2030-09-18"}]
[null,null,null,null,null,53,{"$f":"BufferEndDate+AboveBufferChartDays","v":45138},0,10,12,14,1000,null,1920,null,0.1,{"$f":"WORKDAY(ProjectStartDate,N416)","v":"2030-09-25"}]
[null,null,null,null,null,53,{"$f":"BufferEndDate+AboveBufferChartDays","v":45138},0,10,12,14,1000,null,1925,null,0.1,{"$f":"WORKDAY(ProjectStartDate,N417)","v":"2030-10-02"}]
[null,null,null,null,null,53,{"$f":"BufferEndDate+AboveBufferChartDays","v":45138},0,10,12,14,1000,null,1930,null,0.1,{"$f":"WORKDAY(ProjectStartDate,N418)","v":"2030-10-09"}]
[null,null,null,null,null,53,{"$f":"BufferEndDate+AboveBufferChartDays","v":45138},0,10,12,14,1000,null,1935,null,0.1,{"$f":"WORKDAY(ProjectStartDate,N419)","v":"2030-10-16"}]
[null,null,null,null,null,53,{"$f":"BufferEndDate+AboveBufferChartDays","v":45138},0,10,12,14,1000,null,1940,null,0.1,{"$f":"WORKDAY(ProjectStartDate,N420)","v":"2030-10-23"}]
[null,null,null,null,null,53,{"$f":"BufferEndDate+AboveBufferChartDays","v":45138},0,10,12,14,1000,null,1945,null,0.1,{"$f":"WORKDAY(ProjectStartDate,N421)","v":"2030-10-30"}]
[null,null,null,null,null,53,{"$f":"BufferEndDate+AboveBufferChartDays","v":45138},0,10,12,14,1000,null,1950,null,0.1,{"$f":"WORKDAY(ProjectStartDate,N422)","v":"2030-11-06"}]
[null,null,null,null,null,53,{"$f":"BufferEndDate+AboveBufferChartDays","v":45138},0,10,12,14,1000,null,1955,null,0.1,{"$f":"WORKDAY(ProjectStartDate,N423)","v":"2030-11-13"}]
[null,null,null,null,null,{"$f":"F423","v":53},{"$f":"BufferEndDate+AboveBufferChartDays","v":45138},0,10,12,14,1000,null,1960,null,0.1,{"$f":"WORKDAY(ProjectStartDate,N424)","v":"2030-11-20"}]
[null,null,null,null,null,53,{"$f":"BufferEndDate+AboveBufferChartDays","v":45138},0,10,12,14,1000,null,1965,null,0.1,{"$f":"WORKDAY(ProjectStartDate,N425)","v":"2030-11-27"}]
[null,null,null,null,null,53,{"$f":"BufferEndDate+AboveBufferChartDays","v":45138},0,10,12,14,1000,null,1970,null,0.1,{"$f":"WORKDAY(ProjectStartDate,N426)","v":"2030-12-04"}]
[null,null,null,null,null,53,{"$f":"BufferEndDate+AboveBufferChartDays","v":45138},0,10,12,14,1000,null,1975,null,0.1,{"$f":"WORKDAY(ProjectStartDate,N427)","v":"2030-12-11"}]
[null,null,null,null,null,53,{"$f":"BufferEndDate+AboveBufferChartDays","v":45138},0,10,12,14,1000,null,1980,null,0.1,{"$f":"WORKDAY(ProjectStartDate,N428)","v":"2030-12-18"}]
[null,null,null,null,null,53,{"$f":"BufferEndDate+AboveBufferChartDays","v":45138},0,10,12,14,1000,null,1985,null,0.1,{"$f":"WORKDAY(ProjectStartDate,N429)","v":"2030-12-25"}]
[null,null,null,null,null,53,{"$f":"BufferEndDate+AboveBufferChartDays","v":45138},0,10,12,14,1000,null,1990,null,0.1,{"$f":"WORKDAY(ProjectStartDate,N430)","v":"2031-01-01"}]
[null,null,null,null,null,53,{"$f":"BufferEndDate+AboveBufferChartDays","v":45138},0,10,12,14,1000,null,1995,null,0.1,{"$f":"WORKDAY(ProjectStartDate,N431)","v":"2031-01-08"}]
[null,null,null,null,null,53,{"$f":"BufferEndDate+AboveBufferChartDays","v":45138},0,10,12,14,1000,null,2000,null,0.1,{"$f":"WORKDAY(ProjectStartDate,N432)","v":"2031-01-15"}]
[null,null,null,null,null,53,{"$f":"BufferEndDate+AboveBufferChartDays","v":45138},0,10,12,14,1000,null,2005,null,0.1,{"$f":"WORKDAY(ProjectStartDate,N433)","v":"2031-01-22"}]
[null,null,null,null,null,53,{"$f":"BufferEndDate+AboveBufferChartDays","v":45138},0,10,12,14,1000,null,2010,null,0.1,{"$f":"WORKDAY(ProjectStartDate,N434)","v":"2031-01-29"}]
[null,null,null,null,null,53,{"$f":"BufferEndDate+AboveBufferChartDays","v":45138},0,10,12,14,1000,null,2015,null,0.1,{"$f":"WORKDAY(ProjectStartDate,N435)","v":"2031-02-05"}]
[null,null,null,null,null,53,{"$f":"BufferEndDate+AboveBufferChartDays","v":45138},0,10,12,14,1000,null,2020,null,0.1,{"$f":"WORKDAY(ProjectStartDate,N436)","v":"2031-02-12"}]
[null,null,null,null,null,53,{"$f":"BufferEndDate+AboveBufferChartDays","v":45138},0,10,12,14,1000,null,2025,null,0.1,{"$f":"WORKDAY(ProjectStartDate,N437)","v":"2031-02-19"}]
[null,null,null,null,null,53,{"$f":"BufferEndDate+AboveBufferChartDays","v":45138},0,10,12,14,1000,null,2030,null,0.1,{"$f":"WORKDAY(ProjectStartDate,N438)","v":"2031-02-26"}]
[null,null,null,null,null,53,{"$f":"BufferEndDate+AboveBufferChartDays","v":45138},0,10,12,14,1000,null,2035,null,0.1,{"$f":"WORKDAY(ProjectStartDate,N439)","v":"2031-03-05"}]
[null,null,null,null,null,{"$f":"F439","v":53},{"$f":"BufferEndDate+AboveBufferChartDays","v":45138},0,10,12,14,1000,null,2040,null,0.1,{"$f":"WORKDAY(ProjectStartDate,N440)","v":"2031-03-12"}]
[null,null,null,null,null,53,{"$f":"BufferEndDate+AboveBufferChartDays","v":45138},0,10,12,14,1000,null,2045,null,0.1,{"$f":"WORKDAY(ProjectStartDate,N441)","v":"2031-03-19"}]
[null,null,null,null,null,53,{"$f":"BufferEndDate+AboveBufferChartDays","v":45138},0,10,12,14,1000,null,2050,null,0.1,{"$f":"WORKDAY(ProjectStartDate,N442)","v":"2031-03-26"}]
[null,null,null,null,null,53,{"$f":"BufferEndDate+AboveBufferChartDays","v":45138},0,10,12,14,1000,null,2055,null,0.1,{"$f":"WORKDAY(ProjectStartDate,N443)","v":"2031-04-02"}]
[null,null,null,null,null,53,{"$f":"BufferEndDate+AboveBufferChartDays","v":45138},0,10,12,14,1000,null,2060,null,0.1,{"$f":"WORKDAY(ProjectStartDate,N444)","v":"2031-04-09"}]
[null,null,null,null,null,53,{"$f":"BufferEndDate+AboveBufferChartDays","v":45138},0,10,12,14,1000,null,2065,null,0.1,{"$f":"WORKDAY(ProjectStartDate,N445)","v":"2031-04-16"}]
[null,null,null,null,null,53,{"$f":"BufferEndDate+AboveBufferChartDays","v":45138},0,10,12,14,1000,null,2070,null,0.1,{"$f":"WORKDAY(ProjectStartDate,N446)","v":"2031-04-23"}]
[null,null,null,null,null,53,{"$f":"BufferEndDate+AboveBufferChartDays","v":45138},0,10,12,14,1000,null,2075,null,0.1,{"$f":"WORKDAY(ProjectStartDate,N447)","v":"2031-04-30"}]
[null,null,null,null,null,53,{"$f":"BufferEndDate+AboveBufferChartDays","v":45138},0,10,12,14,1000,null,2080,null,{"$f":"LeftMin+$P$31","v":0.1},{"$f":"WORKDAY(ProjectStartDate,N448)","v":"2031-05-07"}]
[null,null,null,null,null,53,{"$f":"BufferEndDate+AboveBufferChartDays","v":45138},0,10,12,14,1000,null,{"$f":"N448+XMajor","v":2085},null,0.1,{"$f":"WORKDAY(ProjectStartDate,N449)","v":"2031-05-14"}]
[null,null,null,null,null,53,{"$f":"BufferEndDate+AboveBufferChartDays","v":45138},0,10,12,14,1000,null,2090,null,0.1,{"$f":"WORKDAY(ProjectStartDate,N450)","v":"2031-05-21"}]
[null,null,null,null,null,53,{"$f":"BufferEndDate+AboveBufferChartDays","v":45138},0,10,12,14,1000,null,2095,null,0.1,{"$f":"WORKDAY(ProjectStartDate,N451)","v":"2031-05-28"}]
[null,null,null,null,null,53,{"$f":"BufferEndDate+AboveBufferChartDays","v":45138},0,10,12,{"$f":"VALUE(BufferDays)","v":14},1000,null,2100,null,0.1,{"$f":"WORKDAY(ProjectStartDate,N452)","v":"2031-06-04"}]
[null,null,null,null,null,53,{"$f":"BufferEndDate+AboveBufferChartDays","v":45138},0,10,12,14,1000,null,2105,null,0.1,{"$f":"WORKDAY(ProjectStartDate,N453)","v":"2031-06-11"}]
[null,null,null,null,null,53,{"$f":"BufferEndDate+AboveBufferChartDays","v":45138},0,10,12,14,1000,null,2110,null,0.1,{"$f":"WORKDAY(ProjectStartDate,N454)","v":"2031-06-18"}]
[null,null,null,null,null,53,{"$f":"BufferEndDate+AboveBufferChartDays","v":45138},0,10,12,14,1000,null,2115,null,0.1,{"$f":"WORKDAY(ProjectStartDate,N455)","v":"2031-06-25"}]
[null,null,null,null,null,{"$f":"F455","v":53},{"$f":"BufferEndDate+AboveBufferChartDays","v":45138},0,10,12,14,1000,null,2120,null,0.1,{"$f":"WORKDAY(ProjectStartDate,N456)","v":"2031-07-02"}]
[null,null,null,null,null,53,{"$f":"BufferEndDate+AboveBufferChartDays","v":45138},0,10,12,14,1000,null,2125,null,0.1,{"$f":"WORKDAY(ProjectStartDate,N457)","v":"2031-07-09"}]
[null,null,null,null,null,53,{"$f":"BufferEndDate+AboveBufferChartDays","v":45138},0,10,12,14,1000,null,2130,null,0.1,{"$f":"WORKDAY(ProjectStartDate,N458)","v":"2031-07-16"}]
[null,null,null,null,null,53,{"$f":"BufferEndDate+AboveBufferChartDays","v":45138},0,10,12,14,1000,null,2135,null,0.1,{"$f":"WORKDAY(ProjectStartDate,N459)","v":"2031-07-23"}]
[null,null,null,null,null,53,{"$f":"BufferEndDate+AboveBufferChartDays","v":45138},0,10,12,14,1000,null,2140,null,0.1,{"$f":"WORKDAY(ProjectStartDate,N460)","v":"2031-07-30"}]
[null,null,null,null,null,53,{"$f":"BufferEndDate+AboveBufferChartDays","v":45138},0,10,12,14,1000,null,2145,null,0.1,{"$f":"WORKDAY(ProjectStartDate,N461)","v":"2031-08-06"}]
[null,null,null,null,null,53,{"$f":"BufferEndDate+AboveBufferChartDays","v":45138},0,10,12,14,1000,null,2150,null,0.1,{"$f":"WORKDAY(ProjectStartDate,N462)","v":"2031-08-13"}]
[null,null,null,null,null,53,{"$f":"BufferEndDate+AboveBufferChartDays","v":45138},0,10,12,14,1000,null,2155,null,0.1,{"$f":"WORKDAY(ProjectStartDate,N463)","v":"2031-08-20"}]
[null,null,null,null,null,53,{"$f":"BufferEndDate+AboveBufferChartDays","v":45138},0,10,12,14,1000,null,2160,null,0.1,{"$f":"WORKDAY(ProjectStartDate,N464)","v":"2031-08-27"}]
[null,null,null,null,null,53,{"$f":"BufferEndDate+AboveBufferChartDays","v":45138},0,10,12,14,1000,null,2165,null,0.1,{"$f":"WORKDAY(ProjectStartDate,N465)","v":"2031-09-03"}]
[null,null,null,null,null,53,{"$f":"BufferEndDate+AboveBufferChartDays","v":45138},0,10,12,14,1000,null,2170,null,0.1,{"$f":"WORKDAY(ProjectStartDate,N466)","v":"2031-09-10"}]
[null,null,null,null,null,53,{"$f":"BufferEndDate+AboveBufferChartDays","v":45138},0,10,12,14,1000,null,2175,null,0.1,{"$f":"WORKDAY(ProjectStartDate,N467)","v":"2031-09-17"}]
[null,null,null,null,null,53,{"$f":"BufferEndDate+AboveBufferChartDays","v":45138},0,10,12,14,1000,null,2180,null,0.1,{"$f":"WORKDAY(ProjectStartDate,N468)","v":"2031-09-24"}]
[null,null,null,null,null,53,{"$f":"BufferEndDate+AboveBufferChartDays","v":45138},0,10,12,14,1000,null,2185,null,0.1,{"$f":"WORKDAY(ProjectStartDate,N469)","v":"2031-10-01"}]
[null,null,null,null,null,53,{"$f":"BufferEndDate+AboveBufferChartDays","v":45138},0,10,12,14,1000,null,2190,null,0.1,{"$f":"WORKDAY(ProjectStartDate,N470)","v":"2031-10-08"}]
[null,null,null,null,null,53,{"$f":"BufferEndDate+AboveBufferChartDays","v":45138},0,10,12,14,1000,null,2195,null,0.1,{"$f":"WORKDAY(ProjectStartDate,N471)","v":"2031-10-15"}]
[null,null,null,null,null,{"$f":"F471","v":53},{"$f":"BufferEndDate+AboveBufferChartDays","v":45138},0,10,12,14,1000,null,2200,null,0.1,{"$f":"WORKDAY(ProjectStartDate,N472)","v":"2031-10-22"}]
[null,null,null,null,null,53,{"$f":"BufferEndDate+AboveBufferChartDays","v":45138},0,10,12,14,1000,null,2205,null,0.1,{"$f":"WORKDAY(ProjectStartDate,N473)","v":"2031-10-29"}]
[null,null,null,null,null,53,{"$f":"BufferEndDate+AboveBufferChartDays","v":45138},0,10,12,14,1000,null,2210,null,0.1,{"$f":"WORKDAY(ProjectStartDate,N474)","v":"2031-11-05"}]
[null,null,null,null,null,53,{"$f":"BufferEndDate+AboveBufferChartDays","v":45138},0,10,12,14,1000,null,2215,null,0.1,{"$f":"WORKDAY(ProjectStartDate,N475)","v":"2031-11-12"}]
[null,null,null,null,null,53,{"$f":"BufferEndDate+AboveBufferChartDays","v":45138},0,10,12,14,1000,null,2220,null,0.1,{"$f":"WORKDAY(ProjectStartDate,N476)","v":"2031-11-19"}]
[null,null,null,null,null,53,{"$f":"BufferEndDate+AboveBufferChartDays","v":45138},0,10,12,14,1000,null,2225,null,0.1,{"$f":"WORKDAY(ProjectStartDate,N477)","v":"2031-11-26"}]
[null,null,null,null,null,53,{"$f":"BufferEndDate+AboveBufferChartDays","v":45138},0,10,12,14,1000,null,2230,null,0.1,{"$f":"WORKDAY(ProjectStartDate,N478)","v":"2031-12-03"}]
[null,null,null,null,null,53,{"$f":"BufferEndDate+AboveBufferChartDays","v":45138},0,10,12,14,1000,null,2235,null,0.1,{"$f":"WORKDAY(ProjectStartDate,N479)","v":"2031-12-10"}]
[null,null,null,null,null,53,{"$f":"BufferEndDate+AboveBufferChartDays","v":45138},0,10,12,14,1000,null,2240,null,0.1,{"$f":"WORKDAY(ProjectStartDate,N480)","v":"2031-12-17"}]
[null,null,null,null,null,53,{"$f":"BufferEndDate+AboveBufferChartDays","v":45138},0,10,12,14,1000,null,2245,null,0.1,{"$f":"WORKDAY(ProjectStartDate,N481)","v":"2031-12-24"}]
[null,null,null,null,null,53,{"$f":"BufferEndDate+AboveBufferChartDays","v":45138},0,10,12,14,1000,null,2250,null,0.1,{"$f":"WORKDAY(ProjectStartDate,N482)","v":"2031-12-31"}]
[null,null,null,null,null,53,{"$f":"BufferEndDate+AboveBufferChartDays","v":45138},0,10,12,14,1000,null,2255,null,0.1,{"$f":"WORKDAY(ProjectStartDate,N483)","v":"2032-01-07"}]
[null,null,null,null,null,53,{"$f":"BufferEndDate+AboveBufferChartDays","v":45138},0,10,12,14,1000,null,2260,null,0.1,{"$f":"WORKDAY(ProjectStartDate,N484)","v":"2032-01-14"}]
[null,null,null,null,null,53,{"$f":"BufferEndDate+AboveBufferChartDays","v":45138},0,10,12,14,1000,null,2265,null,0.1,{"$f":"WORKDAY(ProjectStartDate,N485)","v":"2032-01-21"}]
[null,null,null,null,null,53,{"$f":"BufferEndDate+AboveBufferChartDays","v":45138},0,10,12,14,1000,null,2270,null,0.1,{"$f":"WORKDAY(ProjectStartDate,N486)","v":"2032-01-28"}]
[null,null,null,null,null,53,{"$f":"BufferEndDate+AboveBufferChartDays","v":45138},0,10,12,14,1000,null,2275,null,0.1,{"$f":"WORKDAY(ProjectStartDate,N487)","v":"2032-02-04"}]
[null,null,null,null,null,{"$f":"F487","v":53},{"$f":"BufferEndDate+AboveBufferChartDays","v":45138},0,10,12,14,1000,null,2280,null,0.1,{"$f":"WORKDAY(ProjectStartDate,N488)","v":"2032-02-11"}]
[null,null,null,null,null,53,{"$f":"BufferEndDate+AboveBufferChartDays","v":45138},0,10,12,14,1000,null,2285,null,0.1,{"$f":"WORKDAY(ProjectStartDate,N489)","v":"2032-02-18"}]
[null,null,null,null,null,53,{"$f":"BufferEndDate+AboveBufferChartDays","v":45138},0,10,12,14,1000,null,2290,null,0.1,{"$f":"WORKDAY(ProjectStartDate,N490)","v":"2032-02-25"}]
[null,null,null,null,null,53,{"$f":"BufferEndDate+AboveBufferChartDays","v":45138},0,10,12,14,1000,null,2295,null,0.1,{"$f":"WORKDAY(ProjectStartDate,N491)","v":"2032-03-03"}]
[null,null,null,null,null,53,{"$f":"BufferEndDate+AboveBufferChartDays","v":45138},0,10,12,14,1000,null,2300,null,0.1,{"$f":"WORKDAY(ProjectStartDate,N492)","v":"2032-03-10"}]
[null,null,null,null,null,53,{"$f":"BufferEndDate+AboveBufferChartDays","v":45138},0,10,12,14,1000,null,2305,null,0.1,{"$f":"WORKDAY(ProjectStartDate,N493)","v":"2032-03-17"}]
[null,null,null,null,null,53,{"$f":"BufferEndDate+AboveBufferChartDays","v":45138},0,10,12,14,1000,null,2310,null,0.1,{"$f":"WORKDAY(ProjectStartDate,N494)","v":"2032-03-24"}]
[null,null,null,null,null,53,{"$f":"BufferEndDate+AboveBufferChartDays","v":45138},0,10,12,14,1000,null,2315,null,0.1,{"$f":"WORKDAY(ProjectStartDate,N495)","v":"2032-03-31"}]
[null,null,null,null,null,53,{"$f":"BufferEndDate+AboveBufferChartDays","v":45138},0,10,12,14,1000,null,2320,null,0.1,{"$f":"WORKDAY(ProjectStartDate,N496)","v":"2032-04-07"}]
[null,null,null,null,null,53,{"$f":"BufferEndDate+AboveBufferChartDays","v":45138},0,10,12,14,1000,null,2325,null,0.1,{"$f":"WORKDAY(ProjectStartDate,N497)","v":"2032-04-14"}]
[null,null,null,null,null,53,{"$f":"BufferEndDate+AboveBufferChartDays","v":45138},0,10,12,14,1000,null,2330,null,0.1,{"$f":"WORKDAY(ProjectStartDate,N498)","v":"2032-04-21"}]
[null,null,null,null,null,53,{"$f":"BufferEndDate+AboveBufferChartDays","v":45138},0,10,12,14,1000,null,2335,null,0.1,{"$f":"WORKDAY(ProjectStartDate,N499)","v":"2032-04-28"}]
[null,null,null,null,null,53,{"$f":"BufferEndDate+AboveBufferChartDays","v":45138},0,10,12,14,1000,null,2340,null,0.1,{"$f":"WORKDAY(ProjectStartDate,N500)","v":"2032-05-05"}]
[null,null,null,null,null,53,{"$f":"BufferEndDate+AboveBufferChartDays","v":45138},0,10,12,14,1000,null,2345,null,0.1,{"$f":"WORKDAY(ProjectStartDate,N501)","v":"2032-05-12"}]
[null,null,null,null,null,53,{"$f":"BufferEndDate+AboveBufferChartDays","v":45138},0,10,12,14,1000,null,2350,null,0.1,{"$f":"WORKDAY(ProjectStartDate,N502)","v":"2032-05-19"}]
[null,null,null,null,null,53,{"$f":"BufferEndDate+AboveBufferChartDays","v":45138},0,10,12,14,1000,null,2355,null,0.1,{"$f":"WORKDAY(ProjectStartDate,N503)","v":"2032-05-26"}]
[null,null,null,null,null,{"$f":"F503","v":53},{"$f":"BufferEndDate+AboveBufferChartDays","v":45138},0,10,12,14,1000,null,2360,null,0.1,{"$f":"WORKDAY(ProjectStartDate,N504)","v":"2032-06-02"}]
[null,null,null,null,null,53,{"$f":"BufferEndDate+AboveBufferChartDays","v":45138},0,10,12,14,1000,null,2365,null,0.1,{"$f":"WORKDAY(ProjectStartDate,N505)","v":"2032-06-09"}]
[null,null,null,null,null,53,{"$f":"BufferEndDate+AboveBufferChartDays","v":45138},0,10,12,14,1000,null,2370,null,0.1,{"$f":"WORKDAY(ProjectStartDate,N506)","v":"2032-06-16"}]
[null,null,null,null,null,53,{"$f":"BufferEndDate+AboveBufferChartDays","v":45138},0,10,12,14,1000,null,2375,null,0.1,{"$f":"WORKDAY(ProjectStartDate,N507)","v":"2032-06-23"}]
[null,null,null,null,null,53,{"$f":"BufferEndDate+AboveBufferChartDays","v":45138},0,10,12,14,1000,null,2380,null,0.1,{"$f":"WORKDAY(ProjectStartDate,N508)","v":"2032-06-30"}]
[null,null,null,null,null,53,{"$f":"BufferEndDate+AboveBufferChartDays","v":45138},0,10,12,14,1000,null,2385,null,0.1,{"$f":"WORKDAY(ProjectStartDate,N509)","v":"2032-07-07"}]
[null,null,null,null,null,53,{"$f":"BufferEndDate+AboveBufferChartDays","v":45138},0,10,12,14,1000,null,2390,null,0.1,{"$f":"WORKDAY(ProjectStartDate,N510)","v":"2032-07-14"}]
[null,null,null,null,null,53,{"$f":"BufferEndDate+AboveBufferChartDays","v":45138},0,10,12,14,1000,null,2395,null,0.1,{"$f":"WORKDAY(ProjectStartDate,N511)","v":"2032-07-21"}]
[null,null,null,null,null,53,{"$f":"BufferEndDate+AboveBufferChartDays","v":45138},0,10,12,14,1000,null,2400,null,{"$f":"LeftMin+$P$31","v":0.1},{"$f":"WORKDAY(ProjectStartDate,N512)","v":"2032-07-28"}]
[null,null,null,null,null,53,{"$f":"BufferEndDate+AboveBufferChartDays","v":45138},0,10,12,14,1000,null,{"$f":"N512+XMajor","v":2405},null,0.1,{"$f":"WORKDAY(ProjectStartDate,N513)","v":"2032-08-04"}]
[null,null,null,null,null,53,{"$f":"BufferEndDate+AboveBufferChartDays","v":45138},0,10,12,14,1000,null,2410,null,0.1,{"$f":"WORKDAY(ProjectStartDate,N514)","v":"2032-08-11"}]
[null,null,null,null,null,53,{"$f":"BufferEndDate+AboveBufferChartDays","v":45138},0,10,12,14,1000,null,2415,null,0.1,{"$f":"WORKDAY(ProjectStartDate,N515)","v":"2032-08-18"}]
[null,null,null,null,null,53,{"$f":"BufferEndDate+AboveBufferChartDays","v":45138},0,10,12,{"$f":"VALUE(BufferDays)","v":14},1000,null,2420,null,0.1,{"$f":"WORKDAY(ProjectStartDate,N516)","v":"2032-08-25"}]
[null,null,null,null,null,53,{"$f":"BufferEndDate+AboveBufferChartDays","v":45138},0,10,12,14,1000,null,2425,null,0.1,{"$f":"WORKDAY(ProjectStartDate,N517)","v":"2032-09-01"}]
[null,null,null,null,null,53,{"$f":"BufferEndDate+AboveBufferChartDays","v":45138},0,10,12,14,1000,null,2430,null,0.1,{"$f":"WORKDAY(ProjectStartDate,N518)","v":"2032-09-08"}]
[null,null,null,null,null,53,{"$f":"BufferEndDate+AboveBufferChartDays","v":45138},0,10,12,14,1000,null,2435,null,0.1,{"$f":"WORKDAY(ProjectStartDate,N519)","v":"2032-09-15"}]
[null,null,null,null,null,{"$f":"F519","v":53},{"$f":"BufferEndDate+AboveBufferChartDays","v":45138},0,10,12,14,1000,null,2440,null,0.1,{"$f":"WORKDAY(ProjectStartDate,N520)","v":"2032-09-22"}]
[null,null,null,null,null,53,{"$f":"BufferEndDate+AboveBufferChartDays","v":45138},0,10,12,14,1000,null,2445,null,0.1,{"$f":"WORKDAY(ProjectStartDate,N521)","v":"2032-09-29"}]
[null,null,null,null,null,53,{"$f":"BufferEndDate+AboveBufferChartDays","v":45138},0,10,12,14,1000,null,2450,null,0.1,{"$f":"WORKDAY(ProjectStartDate,N522)","v":"2032-10-06"}]
[null,null,null,null,null,53,{"$f":"BufferEndDate+AboveBufferChartDays","v":45138},0,10,12,14,1000,null,2455,null,0.1,{"$f":"WORKDAY(ProjectStartDate,N523)","v":"2032-10-13"}]
[null,null,null,null,null,53,{"$f":"BufferEndDate+AboveBufferChartDays","v":45138},0,10,12,14,1000,null,2460,null,0.1,{"$f":"WORKDAY(ProjectStartDate,N524)","v":"2032-10-20"}]
[null,null,null,null,null,53,{"$f":"BufferEndDate+AboveBufferChartDays","v":45138},0,10,12,14,1000,null,2465,null,0.1,{"$f":"WORKDAY(ProjectStartDate,N525)","v":"2032-10-27"}]
[null,null,null,null,null,53,{"$f":"BufferEndDate+AboveBufferChartDays","v":45138},0,10,12,14,1000,null,2470,null,0.1,{"$f":"WORKDAY(ProjectStartDate,N526)","v":"2032-11-03"}]
[null,null,null,null,null,53,{"$f":"BufferEndDate+AboveBufferChartDays","v":45138},0,10,12,14,1000,null,2475,null,0.1,{"$f":"WORKDAY(ProjectStartDate,N527)","v":"2032-11-10"}]
[null,null,null,null,null,53,{"$f":"BufferEndDate+AboveBufferChartDays","v":45138},0,10,12,14,1000,null,2480,null,0.1,{"$f":"WORKDAY(ProjectStartDate,N528)","v":"2032-11-17"}]
[null,null,null,null,null,53,{"$f":"BufferEndDate+AboveBufferChartDays","v":45138},0,10,12,14,1000,null,2485,null,0.1,{"$f":"WORKDAY(ProjectStartDate,N529)","v":"2032-11-24"}]
[null,null,null,null,null,53,{"$f":"BufferEndDate+AboveBufferChartDays","v":45138},0,10,12,14,1000,null,2490,null,0.1,{"$f":"WORKDAY(ProjectStartDate,N530)","v":"2032-12-01"}]
[null,null,null,null,null,53,{"$f":"BufferEndDate+AboveBufferChartDays","v":45138},0,10,12,14,1000,null,2495,null,0.1,{"$f":"WORKDAY(ProjectStartDate,N531)","v":"2032-12-08"}]
[null,null,null,null,null,53,{"$f":"BufferEndDate+AboveBufferChartDays","v":45138},0,10,12,14,1000,null,2500,null,0.1,{"$f":"WORKDAY(ProjectStartDate,N532)","v":"2032-12-15"}]
[null,null,null,null,null,53,{"$f":"BufferEndDate+AboveBufferChartDays","v":45138},0,10,12,14,1000,null,2505,null,0.1,{"$f":"WORKDAY(ProjectStartDate,N533)","v":"2032-12-22"}]
[null,null,null,null,null,53,{"$f":"BufferEndDate+AboveBufferChartDays","v":45138},0,10,12,14,1000,null,2510,null,0.1,{"$f":"WORKDAY(ProjectStartDate,N534)","v":"2032-12-29"}]
[null,null,null,null,null,53,{"$f":"BufferEndDate+AboveBufferChartDays","v":45138},0,10,12,14,1000,null,2515,null,0.1,{"$f":"WORKDAY(ProjectStartDate,N535)","v":"2033-01-05"}]
[null,null,null,null,null,{"$f":"F535","v":53},{"$f":"BufferEndDate+AboveBufferChartDays","v":45138},0,10,12,14,1000,null,2520,null,0.1,{"$f":"WORKDAY(ProjectStartDate,N536)","v":"2033-01-12"}]
[null,null,null,null,null,53,{"$f":"BufferEndDate+AboveBufferChartDays","v":45138},0,10,12,14,1000,null,2525,null,0.1,{"$f":"WORKDAY(ProjectStartDate,N537)","v":"2033-01-19"}]
[null,null,null,null,null,53,{"$f":"BufferEndDate+AboveBufferChartDays","v":45138},0,10,12,14,1000,null,2530,null,0.1,{"$f":"WORKDAY(ProjectStartDate,N538)","v":"2033-01-26"}]
[null,null,null,null,null,53,{"$f":"BufferEndDate+AboveBufferChartDays","v":45138},0,10,12,14,1000,null,2535,null,0.1,{"$f":"WORKDAY(ProjectStartDate,N539)","v":"2033-02-02"}]
[null,null,null,null,null,53,{"$f":"BufferEndDate+AboveBufferChartDays","v":45138},0,10,12,14,1000,null,2540,null,0.1,{"$f":"WORKDAY(ProjectStartDate,N540)","v":"2033-02-09"}]
[null,null,null,null,null,53,{"$f":"BufferEndDate+AboveBufferChartDays","v":45138},0,10,12,14,1000,null,2545,null,0.1,{"$f":"WORKDAY(ProjectStartDate,N541)","v":"2033-02-16"}]
[null,null,null,null,null,53,{"$f":"BufferEndDate+AboveBufferChartDays","v":45138},0,10,12,14,1000,null,2550,null,0.1,{"$f":"WORKDAY(ProjectStartDate,N542)","v":"2033-02-23"}]
[null,null,null,null,null,53,{"$f":"BufferEndDate+AboveBufferChartDays","v":45138},0,10,12,14,1000,null,2555,null,0.1,{"$f":"WORKDAY(ProjectStartDate,N543)","v":"2033-03-02"}]
[null,null,null,null,null,53,{"$f":"BufferEndDate+AboveBufferChartDays","v":45138},0,10,12,14,1000,null,2560,null,0.1,{"$f":"WORKDAY(ProjectStartDate,N544)","v":"2033-03-09"}]
[null,null,null,null,null,53,{"$f":"BufferEndDate+AboveBufferChartDays","v":45138},0,10,12,14,1000,null,2565,null,0.1,{"$f":"WORKDAY(ProjectStartDate,N545)","v":"2033-03-16"}]
[null,null,null,null,null,53,{"$f":"BufferEndDate+AboveBufferChartDays","v":45138},0,10,12,14,1000,null,2570,null,0.1,{"$f":"WORKDAY(ProjectStartDate,N546)","v":"2033-03-23"}]
[null,null,null,null,null,53,{"$f":"BufferEndDate+AboveBufferChartDays","v":45138},0,10,12,14,1000,null,2575,null,0.1,{"$f":"WORKDAY(ProjectStartDate,N547)","v":"2033-03-30"}]
[null,null,null,null,null,53,{"$f":"BufferEndDate+AboveBufferChartDays","v":45138},0,10,12,14,1000,null,2580,null,0.1,{"$f":"WORKDAY(ProjectStartDate,N548)","v":"2033-04-06"}]
[null,null,null,null,null,53,{"$f":"BufferEndDate+AboveBufferChartDays","v":45138},0,10,12,14,1000,null,2585,null,0.1,{"$f":"WORKDAY(ProjectStartDate,N549)","v":"2033-04-13"}]
[null,null,null,null,null,53,{"$f":"BufferEndDate+AboveBufferChartDays","v":45138},0,10,12,14,1000,null,2590,null,0.1,{"$f":"WORKDAY(ProjectStartDate,N550)","v":"2033-04-20"}]
[null,null,null,null,null,53,{"$f":"BufferEndDate+AboveBufferChartDays","v":45138},0,10,12,14,1000,null,2595,null,0.1,{"$f":"WORKDAY(ProjectStartDate,N551)","v":"2033-04-27"}]
[null,null,null,null,null,{"$f":"F551","v":53},{"$f":"BufferEndDate+AboveBufferChartDays","v":45138},0,10,12,14,1000,null,2600,null,0.1,{"$f":"WORKDAY(ProjectStartDate,N552)","v":"2033-05-04"}]
[null,null,null,null,null,53,{"$f":"BufferEndDate+AboveBufferChartDays","v":45138},0,10,12,14,1000,null,2605,null,0.1,{"$f":"WORKDAY(ProjectStartDate,N553)","v":"2033-05-11"}]
[null,null,null,null,null,53,{"$f":"BufferEndDate+AboveBufferChartDays","v":45138},0,10,12,14,1000,null,2610,null,0.1,{"$f":"WORKDAY(ProjectStartDate,N554)","v":"2033-05-18"}]
[null,null,null,null,null,53,{"$f":"BufferEndDate+AboveBufferChartDays","v":45138},0,10,12,14,1000,null,2615,null,0.1,{"$f":"WORKDAY(ProjectStartDate,N555)","v":"2033-05-25"}]
[null,null,null,null,null,53,{"$f":"BufferEndDate+AboveBufferChartDays","v":45138},0,10,12,14,1000,null,2620,null,0.1,{"$f":"WORKDAY(ProjectStartDate,N556)","v":"2033-06-01"}]
[null,null,null,null,null,53,{"$f":"BufferEndDate+AboveBufferChartDays","v":45138},0,10,12,14,1000,null,2625,null,0.1,{"$f":"WORKDAY(ProjectStartDate,N557)","v":"2033-06-08"}]
[null,null,null,null,null,53,{"$f":"BufferEndDate+AboveBufferChartDays","v":45138},0,10,12,14,1000,null,2630,null,0.1,{"$f":"WORKDAY(ProjectStartDate,N558)","v":"2033-06-15"}]
[null,null,null,null,null,53,{"$f":"BufferEndDate+AboveBufferChartDays","v":45138},0,10,12,14,1000,null,2635,null,0.1,{"$f":"WORKDAY(ProjectStartDate,N559)","v":"2033-06-22"}]
[null,null,null,null,null,53,{"$f":"BufferEndDate+AboveBufferChartDays","v":45138},0,10,12,14,1000,null,2640,null,0.1,{"$f":"WORKDAY(ProjectStartDate,N560)","v":"2033-06-29"}]
[null,null,null,null,null,53,{"$f":"BufferEndDate+AboveBufferChartDays","v":45138},0,10,12,14,1000,null,2645,null,0.1,{"$f":"WORKDAY(ProjectStartDate,N561)","v":"2033-07-06"}]
[null,null,null,null,null,53,{"$f":"BufferEndDate+AboveBufferChartDays","v":45138},0,10,12,14,1000,null,2650,null,0.1,{"$f":"WORKDAY(ProjectStartDate,N562)","v":"2033-07-13"}]
[null,null,null,null,null,53,{"$f":"BufferEndDate+AboveBufferChartDays","v":45138},0,10,12,14,1000,null,2655,null,0.1,{"$f":"WORKDAY(ProjectStartDate,N563)","v":"2033-07-20"}]
[null,null,null,null,null,53,{"$f":"BufferEndDate+AboveBufferChartDays","v":45138},0,10,12,14,1000,null,2660,null,0.1,{"$f":"WORKDAY(ProjectStartDate,N564)","v":"2033-07-27"}]
[null,null,null,null,null,53,{"$f":"BufferEndDate+AboveBufferChartDays","v":45138},0,10,12,14,1000,null,2665,null,0.1,{"$f":"WORKDAY(ProjectStartDate,N565)","v":"2033-08-03"}]
[null,null,null,null,null,53,{"$f":"BufferEndDate+AboveBufferChartDays","v":45138},0,10,12,14,1000,null,2670,null,0.1,{"$f":"WORKDAY(ProjectStartDate,N566)","v":"2033-08-10"}]
[null,null,null,null,null,53,{"$f":"BufferEndDate+AboveBufferChartDays","v":45138},0,10,12,14,1000,null,2675,null,0.1,{"$f":"WORKDAY(ProjectStartDate,N567)","v":"2033-08-17"}]
[null,null,null,null,null,{"$f":"F567","v":53},{"$f":"BufferEndDate+AboveBufferChartDays","v":45138},0,{"$f":"I567","v":10},{"$f":"J567","v":12},14,{"$f":"L567","v":1000},null,2680,null,0.1,{"$f":"WORKDAY(ProjectStartDate,N568)","v":"2033-08-24"}]